{"text_format":"1","workbook":"xlsx","n_sheets":5,"sheets":["Outputs Monthly","Timeliness Quarterly","CAP Count Summary","Action Plan Summary","Sheet2"],"not_rendered":{"charts":0,"images":0,"macros":0,"external_links":0,"defined_names":4,"comments":0,"pivot_tables":0},"unopened":[],"bounds":{"document_bytes":16777216,"sheet_cells":100000,"rows_first":2000,"rows_last":500,"rows_between":2000,"halvings":0,"cell_chars":16384,"cell_head_chars":4096},"cells_cut":0,"cells_raw":0,"read":"whole","date_system":"1900"}

{"sheet":"Outputs Monthly","index":0,"n_rows":143,"n_cols":702,"rows_kept":143,"cut":false,"hidden":false,"merged":[[7,13,7,15],[5,3,5,4],[6,3,6,4],[7,3,7,4],[7,6,7,7],[7,10,7,11],[3,13,5,15]]}
[null,null,null,null,null,null,null,null,null,null,null,null,null,"Annual Financial Receipts"]
[null,"County Fiscal Year 2016-17",null,null,null,null,null,null,null,null,null,null,null,"Total Number of Financial Receipts for the Year:","Projected","Actual"]
[null,"Outputs Monthly Report Form for CCOC",null,null,null,null,null,null,null,null,null,null,null,null,{"$f":"LOOKUP(D8,Sheet2!A208:A274,Sheet2!C208:C274)","v":445889}]
[null,null,null,null,null,null,null,null,null,null,null,null,null,"Financial Receipts are totaled for the full fiscal year and entered here annually. This annual total is to be reported on the September submission."]
[]
[null,null,"Report for the Month of: ","Feb"]
[null,null,"Version #: ",1]
[null,null,"County: ","Brevard",null,"Contact:","Michelle Levar",null,null,"Telephone:","321-633-7782",null,"E-mail:","kim.reynolds@brevardclerk.us"]
[]
[]
[null,null,null,null,null,"Criminal",null,null,null,null,null,null,"Civil"]
[null,null,null,"Circuit","County","Juvenile Delinquency","Traffic","Total",null,"Circuit","County","Traffic","Probate","Family","Juvenile Dependency","Total",null,"Grand Total"]
[null,"Projections"]
[null,null,"Cases/Defendants",{"$f":"LOOKUP(D8,Sheet2!A2:A68,Sheet2!D2:D68)","v":8000},{"$f":"LOOKUP(D8,Sheet2!A2:A68,Sheet2!E2:E68)","v":10000},{"$f":"LOOKUP(D8,Sheet2!A2:A68,Sheet2!F2:F68)","v":1900},{"$f":"LOOKUP(D8,Sheet2!A2:A68,Sheet2!G2:G68)","v":7200},{"$f":"SUM(D14:G14)","v":27100},null,{"$f":"LOOKUP(D8,Sheet2!A2:A68,Sheet2!H2:H68)","v":5200},{"$f":"LOOKUP(D8,Sheet2!A2:A68,Sheet2!I2:I68)","v":7700},{"$f":"LOOKUP(D8,Sheet2!A2:A68,Sheet2!M2:M68)","v":52000},{"$f":"LOOKUP(D8,Sheet2!A2:A68,Sheet2!J2:J68)","v":5000},{"$f":"LOOKUP(D8,Sheet2!A2:A68,Sheet2!K2:K68)","v":7200},{"$f":"LOOKUP(D8,Sheet2!A2:A68,Sheet2!L2:L68)","v":350},{"$f":"SUM(J14:O14)","v":77450},null,{"$f":"H14+P14","v":104550}]
[null,null,"Reopenings",{"$f":"LOOKUP(D8,Sheet2!A140:A206,Sheet2!D140:D206)","v":8200},{"$f":"LOOKUP(D8,Sheet2!A140:A206,Sheet2!E140:E206)","v":2100},{"$f":"LOOKUP(D8,Sheet2!A140:A206,Sheet2!F140:F206)","v":2600},{"$f":"LOOKUP(D8,Sheet2!A140:A206,Sheet2!G140:G206)","v":2000},{"$f":"SUM(D15:G15)","v":14900},null,{"$f":"LOOKUP(D8,Sheet2!A140:A206,Sheet2!H140:H206)","v":6000},{"$f":"LOOKUP(D8,Sheet2!A140:A206,Sheet2!I140:I206)","v":3800},{"$f":"LOOKUP(D8,Sheet2!A140:A206,Sheet2!M140:M206)","v":0},{"$f":"LOOKUP(D8,Sheet2!A140:A206,Sheet2!J140:J206)","v":2500},{"$f":"LOOKUP(D8,Sheet2!A140:A206,Sheet2!K140:K206)","v":8500},{"$f":"LOOKUP(D8,Sheet2!A140:A206,Sheet2!L140:L206)","v":800},{"$f":"SUM(J15:O15)","v":21600},null,{"$f":"H15+P15","v":36500}]
[null,null,"NOA's",{"$f":"LOOKUP(D8,Sheet2!A71:A137,Sheet2!D71:D137)","v":450},{"$f":"LOOKUP(D8,Sheet2!A71:A137,Sheet2!E71:E137)","v":25},{"$f":"LOOKUP(D8,Sheet2!A71:A137,Sheet2!F71:F137)","v":3},{"$f":"LOOKUP(D8,Sheet2!A71:A137,Sheet2!G71:G137)","v":35},{"$f":"SUM(D16:G16)","v":513},null,{"$f":"LOOKUP(D8,Sheet2!A71:A137,Sheet2!H71:H137)","v":100},{"$f":"LOOKUP(D8,Sheet2!A71:A137,Sheet2!I71:I137)","v":15},{"$f":"LOOKUP(D8,Sheet2!A71:A137,Sheet2!M71:M137)","v":10},{"$f":"LOOKUP(D8,Sheet2!A71:A137,Sheet2!J71:J137)","v":5},{"$f":"LOOKUP(D8,Sheet2!A71:A137,Sheet2!K71:K137)","v":35},{"$f":"LOOKUP(D8,Sheet2!A71:A137,Sheet2!L71:L137)","v":25},190,null,703]
[null,"October 2016"]
[null,null,"Cases/Defendants",556,756,154,464,{"$f":"SUM(D18:G18)","v":1930},null,270,658,2488,393,568,37,4414,null,6344]
[null,null,"Reopenings",559,118,224,165,{"$f":"SUM(D19:G19)","v":1066},null,332,279,0,200,629,46,1486,null,2552]
[null,null,"NOA's",18,1,2,1,{"$f":"SUM(D20:G20)","v":22},null,12,3,0,0,1,0,16,null,38,null,null,null,null,null,null,null,null,null,null,null,null,null,null,null,null,null,null,null,null,null,null,null,null,null,null,null,null,null,null,null,null,null,null,null,null,null,null,null,null,null,null,null,null,null,null,null,null,null,null,null,null,null,null,null,null,null,null,null,null,null,null,null,null,null,null,null,null,null,null,null,null,null,null,null,null,null,null,null,null,null,null,null,null,null,null,null,null,null,null,null,null,null,null,null,null,null,null,null,null,null,null,null,null,null,null,null,null,null,null,null,null,null,null,null,null,null,null,null,null,null,null,null,null,null,null,null,null,null,null,null,null,null,null,null,null,null,null,null,null,null,null,null,null,null,null,null,null,null,null,null,null,null,null,null,null,null,null,null,null,null,null,null,null,null,null,null,null,null,null,null,null,null,null,null,null,null,null,null,null,null,null,null,null,null,null,null,null,null,null,null,null,null,null,null,null,null,null,null,null,null,null,null,null,null,null,null,null,null,null,null,null,null,null,null,null,null,null,null,null,null,null,null,null,null,null,null,null,null,null,null,null,null,null,null,null,null,null,null,null,null,null,null,null,null,null,null,null,null,null,null,null,null,null,null,null,null,null,null,null,null,null,null,null,null,null,null,null,null,null,null,null,null,null,null,null,null,null,null,null,null,null,null,null,null,null,null,null,null,null,null,null,null,null,null,null,null,null,null,null,null,null,null,null,null,null,null,null,null,null,null,null,null,null,null,null,null,null,null,null,null,null,null,null,null,null,null,null,null,null,null,null,null,null,null,null,null,null,null,null,null,null,null,null,null,null,null,null,null,null,null,null,null,null,null,null,null,null,null,null,null,null,null,null,null,null,null,null,null,null,null,null,null,null,null,null,null,null,null,null,null,null,null,null,null,null,null,null,null,null,null,null,null,null,null,null,null,null,null,null,null,null,null,null,null,null,null,null,null,null,null,null,null,null,null,null,null,null,null,null,null,null,null,null,null,null,null,null,null,null,null,null,null,null,null,null,null,null,null,null,null,null,null,null,null,null,null,null,null,null,null,null,null,null,null,null,null,null,null,null,null,null,null,null,null,null,null,null,null,null,null,null,null,null,null,null,null,null,null,null,null,null,null,null,null,null,null,null,null,null,null,null,null,null,null,null,null,null,null,null,null,null,null,null,null,null,null,null,null,null,null,null,null,null,null,null,null,null,null,null,null,null,null,null,null,null,null,null,null,null,null,null,null,null,null,null,null,null,null,null,null,null,null,null,null,null,null,null,null,null,null,null,null,null,null,null,null,null,null,null,null,null,null,null,null,null,null,null,null,null,null,null,null,null,null,null,null,null,null,null,null,null,null,null,null,null,null,null,null,null,null,null,null,null,null,null,null,null,null,null,null,null,null,null,null,null,null,null,null,null,null,null,null,null,null,null,null,null,null,null,null,null,null,null,null,null,null,null,null,null,null,null,null,null,null,null,null,null,null,null,null,null,null,null,null,null,null,null,null,null,null,null,null,null,null,null,null,null,null,null,null,null,null,null,null,null,null,null,null,null,null,null,null,null,null,null,null,null,null,null,null,null,null,"PABS4.0"]
[null,"November 2016"]
[null,null,"Cases/Defendants",682,786,153,526,{"$f":"SUM(D22:G22)","v":2147},null,235,677,3043,371,546,27,4899,null,7046]
[null,null,"Reopenings",669,159,261,174,{"$f":"SUM(D23:G23)","v":1263},null,308,357,0,209,566,57,1497,null,2760]
[null,null,"NOA's",20,3,0,7,{"$f":"SUM(D24:G24)","v":30},null,13,0,1,1,3,1,19,null,49]
[null,"December 2016"]
[null,null,"Cases/Defendants",733,768,162,552,{"$f":"SUM(D26:G26)","v":2215},null,312,657,2795,420,550,29,4763,null,6978]
[null,null,"Reopenings",605,134,264,147,{"$f":"SUM(D27:G27)","v":1150},null,225,320,0,214,616,53,1428,null,2578]
[null,null,"NOA's",27,1,0,4,{"$f":"SUM(D28:G28)","v":32},null,9,1,6,0,3,1,20,null,52]
[null,"January 2017"]
[null,null,"Cases/Defendants",750,874,145,608,{"$f":"SUM(D30:G30)","v":2377},null,350,876,3811,419,574,26,6056,null,8433]
[null,null,"Reopenings",729,156,267,177,{"$f":"SUM(D31:G31)","v":1329},null,283,313,0,218,706,53,1573,null,2902]
[null,null,"NOA's",22,2,0,1,{"$f":"SUM(D32:G32)","v":25},null,14,2,2,0,1,2,21,null,46]
[null,"February 2017"]
[null,null,"Cases/Defendants",744,753,167,634,{"$f":"SUM(D34:G34)","v":2298},null,340,713,3795,397,579,39,5863,null,8161]
[null,null,"Reopenings",718,167,311,163,{"$f":"SUM(D35:G35)","v":1359},null,268,340,0,198,227,51,1084,null,2443]
[null,null,"NOA's",56,1,0,4,{"$f":"SUM(D36:G36)","v":61},null,16,0,1,0,2,1,20,null,81]
[null,"March 2017"]
[null,null,"Cases/Defendants",null,null,null,null,{"$f":"SUM(D38:G38)","v":0},null,null,null,null,null,null,null,0,null,0]
[null,null,"Reopenings",null,null,null,null,{"$f":"SUM(D39:G39)","v":0},null,null,null,0,null,null,null,0,null,0]
[null,null,"NOA's",null,null,null,null,{"$f":"SUM(D40:G40)","v":0},null,null,null,null,null,null,null,0,null,0]
[null,"April 2017"]
[null,null,"Cases/Defendants",null,null,null,null,{"$f":"SUM(D42:G42)","v":0},null,null,null,null,null,null,null,0,null,0]
[null,null,"Reopenings",null,null,null,null,{"$f":"SUM(D43:G43)","v":0},null,null,null,0,null,null,null,0,null,0]
[null,null,"NOA's",null,null,null,null,{"$f":"SUM(D44:G44)","v":0},null,null,null,null,null,null,null,0,null,0]
[null,"May 2017"]
[null,null,"Cases/Defendants",null,null,null,null,{"$f":"SUM(D46:G46)","v":0},null,null,null,null,null,null,null,0,null,0]
[null,null,"Reopenings",null,null,null,null,{"$f":"SUM(D47:G47)","v":0},null,null,null,0,null,null,null,0,null,0]
[null,null,"NOA's",null,null,null,null,{"$f":"SUM(D48:G48)","v":0},null,null,null,null,null,null,null,0,null,0]
[null,"June 2017"]
[null,null,"Cases/Defendants",null,null,null,null,{"$f":"SUM(D50:G50)","v":0},null,null,null,null,null,null,null,0,null,0]
[null,null,"Reopenings",null,null,null,null,{"$f":"SUM(D51:G51)","v":0},null,null,null,0,null,null,null,0,null,0]
[null,null,"NOA's",null,null,null,null,{"$f":"SUM(D52:G52)","v":0},null,null,null,null,null,null,null,0,null,0]
[null,"July 2017"]
[null,null,"Cases/Defendants",null,null,null,null,{"$f":"SUM(D54:G54)","v":0},null,null,null,null,null,null,null,{"$f":"SUM(J54:O54)","v":0},null,{"$f":"H54+P54","v":0}]
[null,null,"Reopenings",null,null,null,null,{"$f":"SUM(D55:G55)","v":0},null,null,null,0,null,null,null,{"$f":"SUM(J55:O55)","v":0},null,{"$f":"H55+P55","v":0}]
[null,null,"NOA's",null,null,null,null,{"$f":"SUM(D56:G56)","v":0},null,null,null,null,null,null,null,{"$f":"SUM(J56:O56)","v":0},null,{"$f":"H56+P56","v":0}]
[null,"August 2017"]
[null,null,"Cases/Defendants",null,null,null,null,{"$f":"SUM(D58:G58)","v":0},null,null,null,null,null,null,null,{"$f":"SUM(J58:O58)","v":0},null,{"$f":"H58+P58","v":0}]
[null,null,"Reopenings",null,null,null,null,{"$f":"SUM(D59:G59)","v":0},null,null,null,0,null,null,null,{"$f":"SUM(J59:O59)","v":0},null,{"$f":"H59+P59","v":0}]
[null,null,"NOA's",null,null,null,null,{"$f":"SUM(D60:G60)","v":0},null,null,null,null,null,null,null,{"$f":"SUM(J60:O60)","v":0},null,{"$f":"H60+P60","v":0}]
[null,"September 2017"]
[null,null,"Cases/Defendants",null,null,null,null,{"$f":"SUM(D62:G62)","v":0},null,null,null,null,null,null,null,{"$f":"SUM(J62:O62)","v":0},null,{"$f":"H62+P62","v":0}]
[null,null,"Reopenings",null,null,null,null,{"$f":"SUM(D63:G63)","v":0},null,null,null,0,null,null,null,{"$f":"SUM(J63:O63)","v":0},null,{"$f":"H63+P63","v":0}]
[null,null,"NOA's",null,null,null,null,{"$f":"SUM(D64:G64)","v":0},null,null,null,null,null,null,null,{"$f":"SUM(J64:O64)","v":0},null,{"$f":"H64+P64","v":0}]
[null,"Year-to-Date"]
[null,null,"Cases/Defendants",{"$f":"SUM(D54+D58+D62+D18+D22+D26+D30+D34+D38+D42+D46+D50)","v":3465},3937,781,2784,{"$f":"SUM(D66:G66)","v":10967},null,{"$f":"SUM(J54+J58+J62+J18+J22+J26+J30+J34+J38+J42+J46+J50)","v":1507},3581,15932,2000,2817,158,25995,null,36962]
[null,null,"Reopenings",3280,734,1327,826,{"$f":"SUM(D67:G67)","v":6167},null,1416,1609,0,1039,2744,260,7068,null,13235]
[null,null,"NOA's",143,8,2,17,{"$f":"SUM(D68:G68)","v":170},null,64,6,10,1,10,5,96,null,266]
[null,"Year-to-Date % of Projections"]
[null,null,"Cases/Defendants",{"$f":"D66/D14","v":0.43312499999999998},0.39369999999999999,0.41105263157894739,0.38666666666666666,0.40468634686346866,null,{"$f":"J66/J14","v":0.28980769230769232},0.46506493506493507,0.30638461538461537,0.4,0.39124999999999999,0.4514285714285714,0.33563589412524208,null,{"$f":"R66/R14","v":0.35353419416547105}]
[null,null,"Reopenings",{"$f":"IF((AND(D15=0,D67=0)),0,(IF(AND(D15=0,D67>0),1,(D67/D15))))","v":0.4},{"$f":"IF((AND(E15=0,E67=0)),0,(IF(AND(E15=0,E67>0),1,(E67/E15))))","v":0.34952380952380951},0.51038461538461544,0.41299999999999998,{"$f":"H67/H15","v":0.41389261744966444},null,{"$f":"IF((AND(J15=0,J67=0)),0,(IF(AND(J15=0,J67>0),1,(J67/J15))))","v":0.23599999999999999},{"$f":"IF((AND(K15=0,K67=0)),0,(IF(AND(K15=0,K67>0),1,(K67/K15))))","v":0.42342105263157892},0,0.41560000000000002,0.32282352941176473,0.32500000000000001,{"$f":"P67/P15","v":0.32722222222222225},null,{"$f":"R67/R15","v":0.36260273972602741}]
[null,null,"NOA's",{"$f":"IF((AND(D16=0,D68=0)),0,(IF(AND(D16=0,D68>0),1,(D68/D16))))","v":0.31777777777777777},{"$f":"IF((AND(E16=0,E68=0)),0,(IF(AND(E16=0,E68>0),1,(E68/E16))))","v":0.32},0.66666666666666663,0.48571428571428571,{"$f":"H68/H16","v":0.33138401559454189},null,{"$f":"IF((AND(J16=0,J68=0)),0,(IF(AND(J16=0,J68>0),1,(J68/J16))))","v":0.64},{"$f":"IF((AND(K16=0,K68=0)),0,(IF(AND(K16=0,K68>0),1,(K68/K16))))","v":0.4},1,0.2,0.2857142857142857,0.2,{"$f":"P68/P16","v":0.50526315789473686},null,0.3783783783783784]
[]
[]
[]
[]
[null,null,null,null,null,null,null,null,null,null,null,null,null,null,null,null,null,null,null,null,null,"Alachua","Oct",1]
[null,null,null,null,null,null,null,null,null,null,null,null,null,null,null,null,null,null,null,null,null,"Baker","Nov",2]
[null,null,null,null,null,null,null,null,null,null,null,null,null,null,null,null,null,null,null,null,null,"Bay","Dec",3]
[null,null,null,null,null,null,null,null,null,null,null,null,null,null,null,null,null,null,null,null,null,"Bradford","Jan",4]
[null,null,null,null,null,null,null,null,null,null,null,null,null,null,null,null,null,null,null,null,null,"Brevard","Feb",5]
[null,null,null,null,null,null,null,null,null,null,null,null,null,null,null,null,null,null,null,null,null,"Broward","Mar",6]
[null,null,null,null,null,null,null,null,null,null,null,null,null,null,null,null,null,null,null,null,null,"Calhoun","Apr",7]
[null,null,null,null,null,null,null,null,null,null,null,null,null,null,null,null,null,null,null,null,null,"Charlotte","May",8]
[null,null,null,null,null,null,null,null,null,null,null,null,null,null,null,null,null,null,null,null,null,"Citrus","Jun",9]
[null,null,null,null,null,null,null,null,null,null,null,null,null,null,null,null,null,null,null,null,null,"Clay","Jul",10]
[null,null,null,null,null,null,null,null,null,null,null,null,null,null,null,null,null,null,null,null,null,"Collier","Aug"]
[null,null,null,null,null,null,null,null,null,null,null,null,null,null,null,null,null,null,null,null,null,"Columbia","Sep"]
[null,null,null,null,null,null,null,null,null,null,null,null,null,null,null,null,null,null,null,null,null,"Dade"]
[null,null,null,null,null,null,null,null,null,null,null,null,null,null,null,null,null,null,null,null,null,"Desoto"]
[null,null,null,null,null,null,null,null,null,null,null,null,null,null,null,null,null,null,null,null,null,"Dixie"]
[null,null,null,null,null,null,null,null,null,null,null,null,null,null,null,null,null,null,null,null,null,"Duval"]
[null,null,null,null,null,null,null,null,null,null,null,null,null,null,null,null,null,null,null,null,null,"Escambia"]
[null,null,null,null,null,null,null,null,null,null,null,null,null,null,null,null,null,null,null,null,null,"Flagler"]
[null,null,null,null,null,null,null,null,null,null,null,null,null,null,null,null,null,null,null,null,null,"Franklin"]
[null,null,null,null,null,null,null,null,null,null,null,null,null,null,null,null,null,null,null,null,null,"Gadsden"]
[null,null,null,null,null,null,null,null,null,null,null,null,null,null,null,null,null,null,null,null,null,"Gilchrist"]
[null,null,null,null,null,null,null,null,null,null,null,null,null,null,null,null,null,null,null,null,null,"Glades"]
[null,null,null,null,null,null,null,null,null,null,null,null,null,null,null,null,null,null,null,null,null,"Gulf"]
[null,null,null,null,null,null,null,null,null,null,null,null,null,null,null,null,null,null,null,null,null,"Hamilton"]
[null,null,null,null,null,null,null,null,null,null,null,null,null,null,null,null,null,null,null,null,null,"Hardee"]
[null,null,null,null,null,null,null,null,null,null,null,null,null,null,null,null,null,null,null,null,null,"Hendry"]
[null,null,null,null,null,null,null,null,null,null,null,null,null,null,null,null,null,null,null,null,null,"Hernando"]
[null,null,null,null,null,null,null,null,null,null,null,null,null,null,null,null,null,null,null,null,null,"Highlands"]
[null,null,null,null,null,null,null,null,null,null,null,null,null,null,null,null,null,null,null,null,null,"Hillsborough"]
[null,null,null,null,null,null,null,null,null,null,null,null,null,null,null,null,null,null,null,null,null,"Holmes"]
[null,null,null,null,null,null,null,null,null,null,null,null,null,null,null,null,null,null,null,null,null,"Indian River"]
[null,null,null,null,null,null,null,null,null,null,null,null,null,null,null,null,null,null,null,null,null,"Jackson"]
[null,null,null,null,null,null,null,null,null,null,null,null,null,null,null,null,null,null,null,null,null,"Jefferson"]
[null,null,null,null,null,null,null,null,null,null,null,null,null,null,null,null,null,null,null,null,null,"Lafayette"]
[null,null,null,null,null,null,null,null,null,null,null,null,null,null,null,null,null,null,null,null,null,"Lake"]
[null,null,null,null,null,null,null,null,null,null,null,null,null,null,null,null,null,null,null,null,null,"Lee"]
[null,null,null,null,null,null,null,null,null,null,null,null,null,null,null,null,null,null,null,null,null,"Leon"]
[null,null,null,null,null,null,null,null,null,null,null,null,null,null,null,null,null,null,null,null,null,"Levy"]
[null,null,null,null,null,null,null,null,null,null,null,null,null,null,null,null,null,null,null,null,null,"Liberty"]
[null,null,null,null,null,null,null,null,null,null,null,null,null,null,null,null,null,null,null,null,null,"Madison"]
[null,null,null,null,null,null,null,null,null,null,null,null,null,null,null,null,null,null,null,null,null,"Manatee"]
[null,null,null,null,null,null,null,null,null,null,null,null,null,null,null,null,null,null,null,null,null,"Marion"]
[null,null,null,null,null,null,null,null,null,null,null,null,null,null,null,null,null,null,null,null,null,"Martin"]
[null,null,null,null,null,null,null,null,null,null,null,null,null,null,null,null,null,null,null,null,null,"Monroe"]
[null,null,null,null,null,null,null,null,null,null,null,null,null,null,null,null,null,null,null,null,null,"Nassau"]
[null,null,null,null,null,null,null,null,null,null,null,null,null,null,null,null,null,null,null,null,null,"Okaloosa"]
[null,null,null,null,null,null,null,null,null,null,null,null,null,null,null,null,null,null,null,null,null,"Okeechobee"]
[null,null,null,null,null,null,null,null,null,null,null,null,null,null,null,null,null,null,null,null,null,"Orange"]
[null,null,null,null,null,null,null,null,null,null,null,null,null,null,null,null,null,null,null,null,null,"Osceola"]
[null,null,null,null,null,null,null,null,null,null,null,null,null,null,null,null,null,null,null,null,null,"Palm Beach"]
[null,null,null,null,null,null,null,null,null,null,null,null,null,null,null,null,null,null,null,null,null,"Pasco"]
[null,null,null,null,null,null,null,null,null,null,null,null,null,null,null,null,null,null,null,null,null,"Pinellas"]
[null,null,null,null,null,null,null,null,null,null,null,null,null,null,null,null,null,null,null,null,null,"Polk"]
[null,null,null,null,null,null,null,null,null,null,null,null,null,null,null,null,null,null,null,null,null,"Putnam"]
[null,null,null,null,null,null,null,null,null,null,null,null,null,null,null,null,null,null,null,null,null,"Santa Rosa"]
[null,null,null,null,null,null,null,null,null,null,null,null,null,null,null,null,null,null,null,null,null,"Sarasota"]
[null,null,null,null,null,null,null,null,null,null,null,null,null,null,null,null,null,null,null,null,null,"Seminole"]
[null,null,null,null,null,null,null,null,null,null,null,null,null,null,null,null,null,null,null,null,null,"St. Johns"]
[null,null,null,null,null,null,null,null,null,null,null,null,null,null,null,null,null,null,null,null,null,"St. Lucie"]
[null,null,null,null,null,null,null,null,null,null,null,null,null,null,null,null,null,null,null,null,null,"Sumter"]
[null,null,null,null,null,null,null,null,null,null,null,null,null,null,null,null,null,null,null,null,null,"Suwannee"]
[null,null,null,null,null,null,null,null,null,null,null,null,null,null,null,null,null,null,null,null,null,"Taylor"]
[null,null,null,null,null,null,null,null,null,null,null,null,null,null,null,null,null,null,null,null,null,"Union"]
[null,null,null,null,null,null,null,null,null,null,null,null,null,null,null,null,null,null,null,null,null,"Volusia"]
[null,null,null,null,null,null,null,null,null,null,null,null,null,null,null,null,null,null,null,null,null,"Wakulla"]
[null,null,null,null,null,null,null,null,null,null,null,null,null,null,null,null,null,null,null,null,null,"Walton"]
[null,null,null,null,null,null,null,null,null,null,null,null,null,null,null,null,null,null,null,null,null,"Washington"]

{"sheet":"Timeliness Quarterly","index":1,"n_rows":84,"n_cols":702,"rows_kept":84,"cut":false,"hidden":false,"merged":[[6,6,6,8],[4,3,4,4],[4,6,4,7],[6,3,6,4],[5,6,5,7],[5,3,5,4],[20,3,22,3],[11,4,13,4],[14,4,16,4],[14,0,16,1],[11,0,13,1],[17,4,19,4],[17,0,19,1],[20,4,22,4],[10,1,10,2],[9,4,10,4],[9,3,10,3],[11,3,13,3],[14,3,16,3],[17,3,19,3],[20,0,22,1],[39,0,41,1],[30,0,32,1],[33,0,35,1],[36,0,38,1],[36,3,38,3],[23,1,23,2],[45,3,46,3],[45,4,46,4],[46,1,46,2],[30,4,32,4],[27,3,29,3],[27,4,29,4],[39,3,41,3],[39,4,41,4],[33,3,35,3],[33,4,35,4],[36,4,38,4],[30,3,32,3],[24,3,26,3],[24,4,26,4],[24,0,26,1],[27,0,29,1],[47,0,49,1],[47,3,49,3],[47,4,49,4],[50,0,52,1],[50,3,52,3],[50,4,52,4],[60,0,62,1],[60,3,62,3],[60,4,62,4],[53,0,55,1],[53,3,55,3],[53,4,55,4],[56,0,58,1],[56,3,58,3],[56,4,58,4],[59,1,59,2],[72,3,74,3],[72,4,74,4],[63,0,65,1],[63,3,65,3],[63,4,65,4],[66,0,68,1],[66,3,68,3],[66,4,68,4],[75,0,77,1],[75,3,77,3],[75,4,77,4],[69,0,71,1],[69,3,71,3],[69,4,71,4],[72,0,74,1],[9,10,9,11],[11,10,13,10],[11,11,13,11],[14,10,16,10],[14,11,16,11],[27,10,29,10],[27,11,29,11],[17,10,19,10],[17,11,19,11],[20,10,22,10],[20,11,22,11],[24,10,26,10],[24,11,26,11],[9,12,9,13],[11,12,13,12],[11,13,13,13],[14,12,16,12],[14,13,16,13],[17,12,19,12],[17,13,19,13],[20,12,22,12],[20,13,22,13],[9,14,9,15],[11,14,13,14],[11,15,13,15],[14,14,16,14],[14,15,16,15],[17,14,19,14],[17,15,19,15],[9,16,9,17],[11,16,13,16],[11,17,13,17],[14,16,16,16],[14,17,16,17],[17,16,19,16],[17,17,19,17],[24,12,26,12],[24,13,26,13],[24,14,26,14],[24,15,26,15],[24,16,26,16],[24,17,26,17],[20,14,22,14],[27,12,29,12],[27,13,29,13],[27,14,29,14],[27,15,29,15],[27,16,29,16],[27,17,29,17],[20,15,22,15],[20,16,22,16],[20,17,22,17],[30,10,32,10],[30,11,32,11],[30,12,32,12],[30,13,32,13],[30,14,32,14],[30,15,32,15],[30,16,32,16],[30,17,32,17],[33,10,35,10],[33,11,35,11],[33,12,35,12],[33,13,35,13],[33,14,35,14],[33,15,35,15],[33,16,35,16],[33,17,35,17],[36,10,38,10],[36,11,38,11],[36,12,38,12],[36,13,38,13],[36,14,38,14],[36,15,38,15],[36,16,38,16],[36,17,38,17],[39,10,41,10],[39,11,41,11],[39,12,41,12],[39,13,41,13],[39,14,41,14],[39,15,41,15],[39,16,41,16],[39,17,41,17],[45,10,45,11],[45,12,45,13],[45,14,45,15],[45,16,45,17],[47,10,49,10],[47,11,49,11],[47,12,49,12],[47,13,49,13],[47,14,49,14],[47,15,49,15],[47,16,49,16],[47,17,49,17],[50,10,52,10],[50,11,52,11],[50,12,52,12],[50,13,52,13],[50,14,52,14],[50,15,52,15],[50,16,52,16],[50,17,52,17],[53,10,55,10],[53,11,55,11],[53,12,55,12],[53,13,55,13],[53,14,55,14],[53,15,55,15],[53,16,55,16],[53,17,55,17],[56,10,58,10],[56,11,58,11],[56,12,58,12],[56,13,58,13],[56,14,58,14],[56,15,58,15],[56,16,58,16],[56,17,58,17],[60,10,62,10],[60,11,62,11],[60,12,62,12],[60,13,62,13],[60,14,62,14],[60,15,62,15],[60,16,62,16],[60,17,62,17],[63,10,65,10],[63,11,65,11],[63,12,65,12],[63,13,65,13],[63,14,65,14],[63,15,65,15],[63,16,65,16],[63,17,65,17],[66,10,68,10],[66,11,68,11],[66,12,68,12],[66,13,68,13],[66,14,68,14],[66,15,68,15],[66,16,68,16],[66,17,68,17],[75,10,77,10],[75,11,77,11],[75,12,77,12],[75,13,77,13],[75,14,77,14],[75,15,77,15],[75,16,77,16],[75,17,77,17],[69,10,71,10],[69,11,71,11],[69,12,71,12],[69,13,71,13],[69,14,71,14],[69,15,71,15],[69,16,71,16],[69,17,71,17],[72,10,74,10],[72,11,74,11],[72,12,74,12],[72,13,74,13],[72,14,74,14],[72,15,74,15],[72,16,74,16],[72,17,74,17]]}
[]
[null,"County Fiscal Year 2016 - 2017"]
[null,"Timeliness Quarterly Report Form for CCOC"]
[]
[null,null,"Report Month of (Quarter Ending): ",{"$f":"'Outputs Monthly'!D6:E6","v":"Feb"},null,"Contact:",65]
[null,null,"Version #: ",{"$f":"'Outputs Monthly'!D7:E7","v":1},null,"Telephone:",306]
[null,null,"County: ",{"$f":"'Outputs Monthly'!D8:E8","v":"Brevard"},null,"E-mail:",{"$f":"IF(ISBLANK('Outputs Monthly'!N8:P8),\"\",'Outputs Monthly'!N8)","v":"kim.reynolds@brevardclerk.us"}]
[]
["Timeliness Measures #1: Annual Projected % of new cases OPENED within X business days after initial documents are clocked in."]
[null,null,null,"Performance Measure Standard","# Of Business Days","10/1/16 - 12/31/16","1/1/17 - 3/31/17","4/1/17 - 6/30/17","7/1/17 - 9/30/17",null,{"$f":"F10","v":"10/1/16 - 12/31/16"},null,{"$f":"G10","v":"1/1/17 - 3/31/17"},null,{"$f":"H10","v":"4/1/17 - 6/30/17"},null,{"$f":"I10","v":"7/1/17 - 9/30/17"}]
["A","Criminal",null,null,null,"1st Quarter","2nd Quarter","3rd Quarter","4th Quarter","Year-to-Date","Reason Code","Comments / Actions to Improve","Reason Code","Comments / Actions to Improve","Reason Code","Comments / Actions to Improve","Reason Code","Comments / Actions to Improve",null,1]
["Circuit (defendants)",null,"Total # of defendants",0.8,2,{"$f":"'Outputs Monthly'!D18+'Outputs Monthly'!D22+'Outputs Monthly'!D26","v":1971},{"$f":"'Outputs Monthly'!D30+'Outputs Monthly'!D34+'Outputs Monthly'!D38","v":1494},{"$f":"'Outputs Monthly'!D42+'Outputs Monthly'!D46+'Outputs Monthly'!D50","v":0},{"$f":"'Outputs Monthly'!D54+'Outputs Monthly'!D58+'Outputs Monthly'!D62","v":0},{"$f":"SUM(F12:I12)","v":3465}]
[null,null,"# within 2 business days",null,null,1940,1465,null,null,{"$f":"SUM(F13:I13)","v":3405},null,null,null,null,null,null,null,null,null,"Staffing - Internal"]
[null,null,"% mtg level",null,null,{"$f":"F13/F12","v":0.98427194317605271},{"$f":"G13/G12","v":0.98058902275769744},{"$f":"H13/H12","v":{"$error":"#DIV/0!"}},{"$f":"I13/I12","v":{"$error":"#DIV/0!"}},{"$f":"J13/J12","v":0.98268398268398272},null,null,null,null,null,null,null,null,null,"Staffing - External"]
["County (defendants)",null,"Total # of defendants",0.8,3,{"$f":"'Outputs Monthly'!E18+'Outputs Monthly'!E22+'Outputs Monthly'!E26","v":2310},{"$f":"'Outputs Monthly'!E30+'Outputs Monthly'!E34+'Outputs Monthly'!E38","v":1627},{"$f":"'Outputs Monthly'!E42+'Outputs Monthly'!E46+'Outputs Monthly'!E50","v":0},{"$f":"'Outputs Monthly'!E54+'Outputs Monthly'!E58+'Outputs Monthly'!E62","v":0},3937,null,null,null,null,null,null,null,null,null,"Unfunded Mandates - External"]
[null,null,"# within 3 business days",null,null,2231,1610,null,null,3841,null,null,null,null,null,null,null,null,null,"Systems/Conversions - Internal"]
[null,null,"% mtg level",null,null,{"$f":"F16/F15","v":0.96580086580086577},{"$f":"G16/G15","v":0.98955132145052238},{"$f":"H16/H15","v":{"$error":"#DIV/0!"}},{"$f":"I16/I15","v":{"$error":"#DIV/0!"}},{"$f":"J16/J15","v":0.97561595123190248},null,null,null,null,null,null,null,null,null,"Systems/Conversions - External"]
["Juvenile Delinquency (juveniles)",null,"Total # of juveniles",0.8,2,{"$f":"'Outputs Monthly'!F18+'Outputs Monthly'!F22+'Outputs Monthly'!F26","v":469},{"$f":"'Outputs Monthly'!F30+'Outputs Monthly'!F34+'Outputs Monthly'!F38","v":312},{"$f":"'Outputs Monthly'!F42+'Outputs Monthly'!F46+'Outputs Monthly'!F50","v":0},{"$f":"'Outputs Monthly'!F54+'Outputs Monthly'!F58+'Outputs Monthly'!F62","v":0},781]
[null,null,"# within 2 business days",null,null,440,306,null,null,746]
[null,null,"% mtg level",null,null,{"$f":"F19/F18","v":0.93816631130063965},{"$f":"G19/G18","v":0.98076923076923073},{"$f":"H19/H18","v":{"$error":"#DIV/0!"}},{"$f":"I19/I18","v":{"$error":"#DIV/0!"}},{"$f":"J19/J18","v":0.95518565941101152},null,null,null,null,null,null,null,null,null,null,null,null,null,null,null,null,null,null,null,null,null,null,null,null,null,null,null,null,null,null,null,null,null,null,null,null,null,null,null,null,null,null,null,null,null,null,null,null,null,null,null,null,null,null,null,null,null,null,null,null,null,null,null,null,null,null,null,null,null,null,null,null,null,null,null,null,null,null,null,null,null,null,null,null,null,null,null,null,null,null,null,null,null,null,null,null,null,null,null,null,null,null,null,null,null,null,null,null,null,null,null,null,null,null,null,null,null,null,null,null,null,null,null,null,null,null,null,null,null,null,null,null,null,null,null,null,null,null,null,null,null,null,null,null,null,null,null,null,null,null,null,null,null,null,null,null,null,null,null,null,null,null,null,null,null,null,null,null,null,null,null,null,null,null,null,null,null,null,null,null,null,null,null,null,null,null,null,null,null,null,null,null,null,null,null,null,null,null,null,null,null,null,null,null,null,null,null,null,null,null,null,null,null,null,null,null,null,null,null,null,null,null,null,null,null,null,null,null,null,null,null,null,null,null,null,null,null,null,null,null,null,null,null,null,null,null,null,null,null,null,null,null,null,null,null,null,null,null,null,null,null,null,null,null,null,null,null,null,null,null,null,null,null,null,null,null,null,null,null,null,null,null,null,null,null,null,null,null,null,null,null,null,null,null,null,null,null,null,null,null,null,null,null,null,null,null,null,null,null,null,null,null,null,null,null,null,null,null,null,null,null,null,null,null,null,null,null,null,null,null,null,null,null,null,null,null,null,null,null,null,null,null,null,null,null,null,null,null,null,null,null,null,null,null,null,null,null,null,null,null,null,null,null,null,null,null,null,null,null,null,null,null,null,null,null,null,null,null,null,null,null,null,null,null,null,null,null,null,null,null,null,null,null,null,null,null,null,null,null,null,null,null,null,null,null,null,null,null,null,null,null,null,null,null,null,null,null,null,null,null,null,null,null,null,null,null,null,null,null,null,null,null,null,null,null,null,null,null,null,null,null,null,null,null,null,null,null,null,null,null,null,null,null,null,null,null,null,null,null,null,null,null,null,null,null,null,null,null,null,null,null,null,null,null,null,null,null,null,null,null,null,null,null,null,null,null,null,null,null,null,null,null,null,null,null,null,null,null,null,null,null,null,null,null,null,null,null,null,null,null,null,null,null,null,null,null,null,null,null,null,null,null,null,null,null,null,null,null,null,null,null,null,null,null,null,null,null,null,null,null,null,null,null,null,null,null,null,null,null,null,null,null,null,null,null,null,null,null,null,null,null,null,null,null,null,null,null,null,null,null,null,null,null,null,null,null,null,null,null,null,null,null,null,null,null,null,null,null,null,null,null,null,null,null,null,null,null,null,null,null,null,null,null,null,null,null,null,null,null,null,null,null,null,null,null,null,null,null,null,null,null,null,null,null,null,null,null,null,null,null,null,null,null,null,null,null,null,null,null,null,null,null,null,null,null,null,null,null,null,null,null,null,null,null,null,null,null,null,null,null,null,null,null,null,null,null,null,null,null,null,null,null,null,null,null,null,null,null,null,null,null,null,null,null,null,null,null,null,null,null,null,"PABS4.0"]
["Traffic (UTC)",null,"Total # UTC",0.8,3,{"$f":"'Outputs Monthly'!G18+'Outputs Monthly'!G22+'Outputs Monthly'!G26","v":1542},{"$f":"'Outputs Monthly'!G30+'Outputs Monthly'!G34+'Outputs Monthly'!G38","v":1242},{"$f":"'Outputs Monthly'!G42+'Outputs Monthly'!G46+'Outputs Monthly'!G50","v":0},{"$f":"'Outputs Monthly'!G54+'Outputs Monthly'!G58+'Outputs Monthly'!G62","v":0},2784]
[null,null,"# within 3 business days",null,null,1345,1082,null,null,2427]
[null,null,"% mtg level",null,null,{"$f":"F22/F21","v":0.87224383916990922},{"$f":"G22/G21","v":0.87117552334943638},{"$f":"H22/H21","v":{"$error":"#DIV/0!"}},{"$f":"I22/I21","v":{"$error":"#DIV/0!"}},{"$f":"J22/J21","v":0.87176724137931039}]
["B","Civil"]
["Circuit (cases)",null,"Total # of cases",0.8,2,{"$f":"'Outputs Monthly'!J18+'Outputs Monthly'!J22+'Outputs Monthly'!J26","v":817},{"$f":"'Outputs Monthly'!J30+'Outputs Monthly'!J34+'Outputs Monthly'!J38","v":690},{"$f":"'Outputs Monthly'!J42+'Outputs Monthly'!J46+'Outputs Monthly'!J50","v":0},{"$f":"'Outputs Monthly'!J54+'Outputs Monthly'!J58+'Outputs Monthly'!J62","v":0},1507]
[null,null,"# within 2 business days",null,null,753,601,null,null,1354]
[null,null,"% mtg level",null,null,{"$f":"F26/F25","v":0.92166462668298654},{"$f":"G26/G25","v":0.87101449275362319},{"$f":"H26/H25","v":{"$error":"#DIV/0!"}},{"$f":"I26/I25","v":{"$error":"#DIV/0!"}},{"$f":"J26/J25","v":0.89847378898473784}]
["County (cases)",null,"Total # of cases",0.8,2,{"$f":"'Outputs Monthly'!K18+'Outputs Monthly'!K22+'Outputs Monthly'!K26","v":1992},{"$f":"'Outputs Monthly'!K30+'Outputs Monthly'!K34+'Outputs Monthly'!K38","v":1589},{"$f":"'Outputs Monthly'!K42+'Outputs Monthly'!K46+'Outputs Monthly'!K50","v":0},{"$f":"'Outputs Monthly'!K54+'Outputs Monthly'!K58+'Outputs Monthly'!K62","v":0},3581]
[null,null,"# within 2 business days",null,null,1931,1560,null,null,3491]
[null,null,"% mtg level",null,null,{"$f":"F29/F28","v":0.96937751004016059},{"$f":"G29/G28","v":0.98174952800503457},{"$f":"H29/H28","v":{"$error":"#DIV/0!"}},{"$f":"I29/I28","v":{"$error":"#DIV/0!"}},{"$f":"J29/J28","v":0.97486735548729408}]
["Traffic (UTC)",null,"Total # UTC",0.8,4,{"$f":"'Outputs Monthly'!L18+'Outputs Monthly'!L22+'Outputs Monthly'!L26","v":8326},{"$f":"'Outputs Monthly'!L30+'Outputs Monthly'!L34+'Outputs Monthly'!L38","v":7606},{"$f":"'Outputs Monthly'!L42+'Outputs Monthly'!L46+'Outputs Monthly'!L50","v":0},{"$f":"'Outputs Monthly'!L54+'Outputs Monthly'!L58+'Outputs Monthly'!L62","v":0},15932]
[null,null,"# within 4 business days",null,null,7759,6662,null,null,14421]
[null,null,"% mtg level",null,null,{"$f":"F32/F31","v":0.93190007206341585},{"$f":"G32/G31","v":0.87588745727057582},{"$f":"H32/H31","v":{"$error":"#DIV/0!"}},{"$f":"I32/I31","v":{"$error":"#DIV/0!"}},{"$f":"J32/J31","v":0.90515942756716039}]
["Circuit Probate (cases)",null,"Total # of cases",0.8,2,{"$f":"'Outputs Monthly'!M18+'Outputs Monthly'!M22+'Outputs Monthly'!M26","v":1184},{"$f":"'Outputs Monthly'!M30+'Outputs Monthly'!M34+'Outputs Monthly'!M38","v":816},{"$f":"'Outputs Monthly'!M42+'Outputs Monthly'!M46+'Outputs Monthly'!M50","v":0},{"$f":"'Outputs Monthly'!M54+'Outputs Monthly'!M58+'Outputs Monthly'!M62","v":0},2000]
[null,null,"# within 2 business days",null,null,1146,753,null,null,1899]
[null,null,"% mtg level",null,null,{"$f":"F35/F34","v":0.96790540540540537},{"$f":"G35/G34","v":0.92279411764705888},{"$f":"H35/H34","v":{"$error":"#DIV/0!"}},{"$f":"I35/I34","v":{"$error":"#DIV/0!"}},{"$f":"J35/J34","v":0.94950000000000001}]
["Family (cases)",null,"Total # of cases",0.8,3,{"$f":"'Outputs Monthly'!N18+'Outputs Monthly'!N22+'Outputs Monthly'!N26","v":1664},{"$f":"'Outputs Monthly'!N30+'Outputs Monthly'!N34+'Outputs Monthly'!N38","v":1153},{"$f":"'Outputs Monthly'!N42+'Outputs Monthly'!N46+'Outputs Monthly'!N50","v":0},{"$f":"'Outputs Monthly'!N54+'Outputs Monthly'!N58+'Outputs Monthly'!N62","v":0},2817]
[null,null,"# within 3 business days",null,null,1644,1144,null,null,2788]
[null,null,"% mtg level",null,null,{"$f":"F38/F37","v":0.98798076923076927},{"$f":"G38/G37","v":0.99219427580225494},{"$f":"H38/H37","v":{"$error":"#DIV/0!"}},{"$f":"I38/I37","v":{"$error":"#DIV/0!"}},{"$f":"J38/J37","v":0.98970536031238909}]
["Juvenile Dependency (cases)",null,"Total # of cases",0.8,2,{"$f":"'Outputs Monthly'!O18+'Outputs Monthly'!O22+'Outputs Monthly'!O26","v":93},{"$f":"'Outputs Monthly'!O30+'Outputs Monthly'!O34+'Outputs Monthly'!O38","v":65},{"$f":"'Outputs Monthly'!O42+'Outputs Monthly'!O46+'Outputs Monthly'!O50","v":0},{"$f":"'Outputs Monthly'!O54+'Outputs Monthly'!O58+'Outputs Monthly'!O62","v":0},158]
[null,null,"# within 2 business days",null,null,93,65,null,null,158]
[null,null,"% mtg level",null,null,{"$f":"F41/F40","v":1},{"$f":"G41/G40","v":1},{"$f":"H41/H40","v":{"$error":"#DIV/0!"}},{"$f":"I41/I40","v":{"$error":"#DIV/0!"}},{"$f":"J41/J40","v":1}]
[]
[]
["Timeliness Measures #2: Annual Projected % of docket entries entered within X business days after clock in/action taken date."]
[null,null,null,"Performance Measure Standard","# of business days","10/1/16 - 12/31/16","1/1/17 - 3/31/17","4/1/17 - 6/30/17","7/1/17 - 9/30/17",null,{"$f":"F46","v":"10/1/16 - 12/31/16"},null,{"$f":"G46","v":"1/1/17 - 3/31/17"},null,{"$f":"H46","v":"4/1/17 - 6/30/17"},null,{"$f":"I46","v":"7/1/17 - 9/30/17"}]
["A","Criminal",null,null,38991,"1st Quarter","2nd Quarter","3rd Quarter","4th Quarter","Year-to-Date","Reason Code","Actions to Improve","Reason Code","Actions to Improve","Reason Code","Actions to Improve","Reason Code","Actions to Improve"]
["Circuit (defendants)",null,"Total # of docket entries",0.8,3,77338,59025,null,null,{"$f":"SUM(F48:I48)","v":136363}]
[null,null,"# within 3 business days",null,null,73995,59223,null,null,{"$f":"SUM(F49:I49)","v":133218}]
[null,null,"% mtg level",null,null,{"$f":"F49/F48","v":0.95677416017998917},{"$f":"G49/G48","v":1.0033545108005082},{"$f":"H49/H48","v":{"$error":"#DIV/0!"}},{"$f":"I49/I48","v":{"$error":"#DIV/0!"}},{"$f":"J49/J48","v":0.9769365590372755}]
["County (defendants)",null,"Total # of docket entries",0.8,3,40586,27989,null,null,68575]
[null,null,"# within 3 business days",null,null,38842,26868,null,null,65710]
[null,null,"% mtg level",null,null,{"$f":"F52/F51","v":0.95702951756763421},{"$f":"G52/G51","v":0.95994855121654932},{"$f":"H52/H51","v":{"$error":"#DIV/0!"}},{"$f":"I52/I51","v":{"$error":"#DIV/0!"}},{"$f":"J52/J51","v":0.95822092599343789}]
["Juvenile Delinquency (juveniles)",null,"Total # of docket entries",0.8,3,20766,15053,null,null,35819]
[null,null,"# within 3 business days",null,null,20706,15006,null,null,35712]
[null,null,"% mtg level",null,null,{"$f":"F55/F54","v":0.99711066165848017},{"$f":"G55/G54","v":0.99687769879758192},{"$f":"H55/H54","v":{"$error":"#DIV/0!"}},{"$f":"I55/I54","v":{"$error":"#DIV/0!"}},{"$f":"J55/J54","v":0.99701275859180882}]
["Traffic (UTC)",null,"Total # of docket entries",0.8,3,31938,23829,null,null,55767]
[null,null,"# within 3 business days",null,null,30394,22698,null,null,53092]
[null,null,"% mtg level",null,null,{"$f":"F58/F57","v":0.95165633414741058},{"$f":"G58/G57","v":0.95253682487725044},{"$f":"H58/H57","v":{"$error":"#DIV/0!"}},{"$f":"I58/I57","v":{"$error":"#DIV/0!"}},{"$f":"J58/J57","v":0.95203256406118308}]
["B","Civil"]
["Circuit (cases)",null,"Total # of docket entries",0.8,3,39064,28510,null,null,67574]
[null,null,"# within 3 business days",null,null,38560,27976,null,null,66536]
[null,null,"% mtg level",null,null,{"$f":"F62/F61","v":0.98709809543313531},{"$f":"G62/G61","v":0.98126972991932659},{"$f":"H62/H61","v":{"$error":"#DIV/0!"}},{"$f":"I62/I61","v":{"$error":"#DIV/0!"}},{"$f":"J62/J61","v":0.9846390623612632}]
["County (cases)",null,"Total # of docket entries",0.8,3,21224,15004,null,null,36228]
[null,null,"# within 3 business days",null,null,20808,14834,null,null,35642]
[null,null,"% mtg level",null,null,{"$f":"F65/F64","v":0.98039954768186954},{"$f":"G65/G64","v":0.98866968808317779},{"$f":"H65/H64","v":{"$error":"#DIV/0!"}},{"$f":"I65/I64","v":{"$error":"#DIV/0!"}},{"$f":"J65/J64","v":0.9838246660041956}]
["Traffic (UTC)",null,"Total # of docket entries",0.8,4,17870,16950,null,null,34820]
[null,null,"# within 4 business days",null,null,16764,15476,null,null,32240]
[null,null,"% mtg level",null,null,{"$f":"F68/F67","v":0.93810856183547842},{"$f":"G68/G67","v":0.91303834808259587},{"$f":"H68/H67","v":{"$error":"#DIV/0!"}},{"$f":"I68/I67","v":{"$error":"#DIV/0!"}},{"$f":"J68/J67","v":0.92590465249856402}]
["Circuit Probate (cases)",null,"Total # of docket entries",0.8,3,17980,12387,null,null,30367]
[null,null,"# within 3 business days",null,null,17579,12164,null,null,29743]
[null,null,"% mtg level",null,null,{"$f":"F71/F70","v":0.97769744160177974},{"$f":"G71/G70","v":0.98199725518688952},{"$f":"H71/H70","v":{"$error":"#DIV/0!"}},{"$f":"I71/I70","v":{"$error":"#DIV/0!"}},{"$f":"J71/J70","v":0.9794513781407449}]
["Family (cases)",null,"Total # of docket entries",0.8,3,40506,27854,null,null,68360]
[null,null,"# within 3 business days",null,null,39235,27579,null,null,66814]
[null,null,"% mtg level",null,null,{"$f":"F74/F73","v":0.96862193255320195},{"$f":"G74/G73","v":0.99012709126157827},{"$f":"H74/H73","v":{"$error":"#DIV/0!"}},{"$f":"I74/I73","v":{"$error":"#DIV/0!"}},{"$f":"J74/J73","v":0.97738443534230546}]
["Juvenile Dependency (juveniles)",null,"Total # of docket entries",0.8,3,7774,5652,null,null,13426]
[null,null,"# within 3 business days",null,null,7759,5639,null,null,13398]
[null,null,"% mtg level",null,null,{"$f":"F77/F76","v":0.99807049138152815},{"$f":"G77/G76","v":0.99769992922859163},{"$f":"H77/H76","v":{"$error":"#DIV/0!"}},{"$f":"I77/I76","v":{"$error":"#DIV/0!"}},{"$f":"J77/J76","v":0.99791449426485923}]
[]
[]
[null,"Notes:"]
[null,"1.) Reason Codes for Timeliness have been updated to include Internal and External qualifiers. Use the \"Comments / Action to Improve\" field to further explain why the standard was not met for an \"External\" or Internal\" reason. "]
[null,null," If the the reason was \"Internal\", include an expected timeframe the reason will be corrected."]
[null,"2 Cases/Defendants Output numbers are imported from the Outputs Monthly tab of this workbook."]

{"sheet":"CAP Count Summary","index":2,"n_rows":70,"n_cols":44,"rows_kept":70,"cut":false,"hidden":true,"merged":[[0,22,0,40]]}
["County","TIMELINESS STANDARD ONE (New Cases Opened)",null,null,null,null,null,null,null,null,null,null,null,null,null,null,null,null,null,null,null,null,"TIMELINESS STANDARD TWO (Docket Entries Processed)",null,null,null,null,null,null,null,null,null,null,null,null,null,null,null,null,null,null,null,null,"Sent Date"]
[null,"Circuit Criminal Reason","Improve Action","County Criminal Reason","Improve Action","Juvenile Delinquency Reason ","Improve Action","Criminal Traffic Reason ","Improve Action","Circuit Civil Reason","Improve Action","County Civil Reason","Improve Action","Civil Traffic Reason","Improve Action","Probate Reason","Improve Action","Family Reason","Improve Action","Juvenile Dependency Reason","Improve Action",null,"Circuit Criminal Reason","Improve Action","County Criminal Reason","Improve Action","Juvenile Delinquency Reason","Improve Action","Criminal Traffic Reason","Improve Action","Circuit Civil Reason","Improve Action","County Civil Reason","Improve Action","Civil Traffic Reason","Improve Action","Probate Reason","Improve Action","Family Reason","Improve Action","Juvenile Dependency Reason ","Improve Action"]
[]
["Alachua",null,null,null,null,null,null,null,null,null,null,null,null,null,null,null,null,null,null,null,null,null,null,null,null,null,null,null,null,null,null,null,null,null,null,null,null,null,null,null,null,null,null,20140220]
["Baker",null,null,null,null,null,null,null,null,null,null,null,null,null,null,null,null,null,null,null,null,null,null,null,null,null,null,null,null,null,null,null,null,null,null,null,null,null,null,null,null,null,null,20140207]
["Bay",null,null,null,null,null,null,null,null,null,null,null,null,null,null,null,null,null,null,null,null,null,null,null,null,null,null,null,null,null,null,null,null,null,null,null,null,null,null,null,null,null,null,20140218]
["Bradford",null,null,null,null,null,null,null,null,null,null,null,null,null,null,null,null,null,null,null,null,null,null,null,null,null,"Procedural","We are a small county with several Supreme Court death warrant appeals that had priority. ",null,null,null,null,null,null,null,null,null,null,null,null,"Procedural","We are a small county with several Supreme Court death warrant appeals that had priority. ",null,20140218]
["Brevard",null,null,null,null,null,null,null,null,null,null,null,null,null,null,null,null,null,null,null,null,null,null,null,null,null,null,null,null,null,null,null,null,null,null,null,null,null,null,null,null,null,null,20140218]
["Broward",null,null,null,null,null,null,null,null,null,null,null,null,null,null,"E-Filing","A high percentage of cases are rejected. When cases are resubmitted, the calculation for timeliness is based on the original file date.",null,null,null,null,null,null,null,null,null,null,null,null,null,null,null,null,null,null,null,null,null,null,null,"Systems","The division is still adjusting to new case maintenance system. E-filing should assist with improving the timeliness.",null,20140218]
["Calhoun",null,null,null,null,null,null,null,null,null,null,null,null,null,null,null,null,null,null,null,null,null,null,null,null,null,null,null,null,null,null,null,null,null,null,null,null,null,null,null,null,null,null,20140217]
["Charlotte",null,null,null,null,null,null,null,null,null,null,null,null,null,null,null,null,null,null,null,null,null,null,null,null,null,null,null,null,null,null,null,null,null,null,null,null,null,null,null,null,null,null,20140219]
["Citrus",null,null,null,null,null,null,null,null,null,null,null,null,null,null,null,null,null,null,null,null,null,null,null,null,null,null,null,null,null,null,null,null,null,null,null,null,null,null,null,null,null,null,20140206]
["Clay",null,null,null,null,null,null,null,null,null,null,null,null,null,null,null,null,null,null,null,null,null,null,null,null,null,null,null,null,null,null,null,null,null,null,null,null,null,null,null,null,null,null,20140218]
["Collier",null,null,null,null,null,null,null,null,null,null,null,null,null,null,null,null,null,null,null,null,null,null,null,null,null,null,null,null,null,null,null,null,null,null,null,null,null,null,null,null,null,null,20140220]
["Columbia",null,null,null,null,null,null,null,null,null,null,null,null,null,null,null,null,null,null,"Staffing - Insufficient Personnel","This is a one employee department. Employees in other departments will be used to cover this when employee is out.",null,null,null,null,null,null,null,null,null,null,null,null,null,null,null,null,null,null,null,null,null,null,20140219]
["Dade",null,null,"Staffing - Training Required","Training efforts have been completed. We anticipate rate will improve in the next quarter.",null,null,null,null,null,null,null,null,null,null,null,null,null,null,null,null,null,null,null,null,null,null,null,null,null,null,null,null,null,null,null,null,null,null,null,null,null,null,20140219]
["Desoto",null,null,null,null,null,null,null,null,null,null,null,null,null,null,null,null,null,null,null,null,null,null,null,null,null,null,null,null,null,null,null,null,null,null,null,null,null,null,null,null,null,null,20140206]
["Dixie"]
["Duval",null,null,null,null,null,null,null,null,null,null,null,null,null,null,null,null,null,null,null,null,null,null,null,null,null,null,null,null,null,null,null,null,null,null,null,null,null,null,null,null,null,null,20140225]
["Escambia",null,null,null,null,null,null,null,null,null,null,null,null,null,null,null,null,null,null,null,null,null,null,null,null,null,"Staffing - Training Required","Additional cross training will occur immediatley",null,null,null,null,null,null,null,null,null,null,null,null,null,null,null,20140210]
["Flagler",null,null,null,null,null,null,null,null,null,null,null,null,null,null,null,null,null,null,null,null,null,null,null,null,null,null,null,null,null,null,null,null,null,null,null,null,null,null,null,null,null,null,20140214]
["Franklin",null,null,null,null,null,null,null,null,null,null,null,null,null,null,null,null,null,null,null,null,null,null,null,null,null,null,null,null,null,null,null,null,null,null,null,null,null,null,null,null,null,null,20140212]
["Gadsden",null,null,null,null,null,null,null,null,"E-Filing","As the problems get worked out this will improve.",null,null,null,null,null,null,null,null,null,null,null,null,null,null,null,null,null,null,null,null,null,null,null,null,null,null,null,null,null,null,null,null,20140218]
["Gilchrist"]
["Glades",null,null,null,null,null,null,null,null,null,null,null,null,null,null,null,null,null,null,null,null,null,null,null,null,null,null,null,null,null,null,null,null,null,"Systems","Clericus was implemented 9/27/2013 and we are still learning the system.",null,null,null,null,null,null,null,20140224]
["Gulf",null,null,null,null,null,null,null,null,null,null,null,null,null,null,null,null,null,null,null,null,null,null,null,null,null,null,null,null,null,null,null,null,null,null,null,null,null,null,null,null,null,null,20140220]
["Hamilton",null,null,null,null,null,null,null,null,null,null,null,null,null,null,null,null,null,null,null,null,null,null,null,null,null,null,null,null,null,null,null,null,null,null,null,null,null,null,null,null,null,null,20140211]
["Hardee",null,null,null,null,null,null,null,null,null,null,null,null,null,null,null,null,null,null,null,null,null,null,null,null,null,null,null,null,null,null,null,null,null,null,null,null,null,null,null,null,null,null,20140220]
["Hendry",null,null,null,null,null,null,null,null,null,null,null,null,null,null,null,null,null,null,null,null,null,null,null,null,null,null,null,null,null,null,null,null,null,null,null,null,null,null,null,null,null,null,20140219]
["Hernando",null,null,null,null,null,null,null,null,null,null,null,null,null,null,null,null,null,null,null,null,null,null,null,null,null,null,null,null,null,null,null,null,null,null,null,null,null,null,null,null,null,null,20140220]
["Highlands",null,null,null,null,null,null,null,null,null,null,null,null,null,null,null,null,null,null,null,null,null,null,null,null,null,null,null,null,null,null,null,null,null,null,null,null,null,null,null,null,null,null,20140206]
["Hillsborough",null,null,null,null,null,null,null,null,null,null,null,null,null,null,null,null,null,null,null,null,null,null,null,null,null,null,null,null,null,null,null,null,null,null,null,null,null,null,null,null,null,null,20140220]
["Holmes",null,null,null,null,null,null,null,null,null,null,null,null,null,null,null,null,null,null,null,null,null,null,null,null,null,null,null,null,null,null,null,null,null,null,null,null,null,null,null,null,null,null,20140219]
["Indian River",null,null,null,null,null,null,null,null,null,null,null,null,null,null,null,null,null,null,null,null,null,null,null,null,null,null,null,null,null,null,null,null,null,null,null,null,null,null,null,null,null,null,20140208]
["Jackson",null,null,null,null,null,null,null,null,null,null,null,null,null,null,null,null,null,null,null,null,null,null,null,null,null,null,null,null,null,null,null,null,null,null,null,null,null,null,null,null,null,null,20140214]
["Jefferson",null,null,null,null,null,null,null,null,null,null,null,null,null,null,null,null,null,null,null,null,null,null,null,null,null,null,null,null,null,null,null,null,null,null,null,null,null,null,null,null,null,null,20140210]
["Lafayette",null,null,null,null,null,null,null,null,null,null,null,null,null,null,null,null,null,null,null,null,null,null,null,null,null,null,null,null,null,null,null,null,null,null,null,null,null,null,null,null,null,null,20140219]
["Lake",null,null,null,null,null,null,null,null,null,null,null,null,null,null,null,null,null,null,null,null,null,null,null,null,null,null,null,null,null,null,null,null,null,null,null,null,null,null,null,null,null,null,20140219]
["Lee",null,null,null,null,null,null,null,null,null,null,null,null,null,null,null,null,null,null,null,null,null,null,null,null,null,null,null,null,null,null,null,null,null,null,null,null,null,null,null,null,null,null,20140218]
["Leon",null,null,null,null,null,null,null,null,null,null,null,null,null,null,null,null,null,null,null,null,null,null,null,null,null,null,null,null,null,null,null,null,null,null,null,null,null,null,null,null,null,null,20140227]
["LEVY",null,null,null,null,null,null,null,null,null,null,null,null,null,null,null,null,null,null,null,null,null,null,null,null,null,null,null,null,null,null,null,null,null,null,null,null,null,null,null,null,null,null,20140217]
["Liberty","Staffing - Training Required","Due to the sudden retirement of a 30 year employee, we are training new staff.","Staffing - Training Required","Due to the sudden retirement of a 30 year employee, we are training new staff.",null,null,null,null,null,null,null,null,null,null,null,null,null,null,null,null,null,null,null,null,null,"Staffing - Training Required","Due to the sudden retirement of a 30 year employee, we are training new staff.",null,null,null,null,null,null,null,null,"Staffing - Training Required","Due to the sudden retirement of a 30 year employee, we are training new staff.",null,null,null,null,null,20140211]
["Madison",null,null,null,null,null,null,null,null,null,null,null,null,null,null,null,null,null,null,null,null,null,null,null,null,null,null,null,null,null,null,null,null,null,null,null,null,null,null,null,null,null,null,20140214]
["Manatee",null,null,null,null,null,null,null,null,null,null,null,null,null,null,null,null,null,null,null,null,null,null,null,null,null,null,null,null,null,null,null,null,null,null,null,null,null,null,null,null,null,null,20140220]
["Marion",null,null,null,null,null,null,"Procedural","Electornic citations led to errors in entering zeros as O's and O's as zeros in the citation number. We have asked the agencies to use a / thru zeros and staff to be more careful in keying.",null,null,null,null,null,null,null,null,null,null,null,null,null,null,null,null,null,null,null,null,null,"E-Filing","Established a mandatory 1.5 hrs/day for all civil staff to process efilings",null,null,null,null,null,null,null,null,null,null,null,20140211]
["Martin",null,null,null,null,null,null,null,null,null,null,null,null,null,null,null,null,null,null,null,null,null,null,null,null,null,null,null,null,null,null,null,null,null,null,null,null,null,null,null,null,null,null,20140217]
["Monroe",null,null,null,null,null,null,null,null,null,null,null,null,null,null,null,null,null,null,null,null,null,null,null,null,null,null,null,null,null,null,null,null,null,null,null,null,null,null,null,null,null,null,20140213]
["NASSAU",null,null,null,null,null,null,null,null,null,null,null,null,null,null,null,null,null,null,null,null,null,null,null,null,null,null,null,null,null,null,null,null,null,null,null,null,null,null,null,null,null,null,20140220]
["Okaloosa",null,null,null,null,null,null,null,null,null,null,null,null,null,null,null,null,null,null,null,null,null,null,null,null,null,null,null,null,null,null,null,null,null,null,null,null,null,null,null,null,null,null,20140211]
["Okeechobee",null,null,null,null,null,null,null,null,null,null,null,null,null,null,null,null,null,null,null,null,null,null,null,null,null,null,null,null,null,null,null,null,null,null,null,null,null,null,null,null,null,null,20140217]
["Orange",null,null,null,null,null,null,null,null,null,null,null,null,null,null,null,null,null,null,null,null,null,null,null,null,null,null,null,null,null,null,null,null,null,null,null,null,null,null,null,null,null,null,20140219]
["Osceola",null,null,null,null,null,null,null,null,null,null,null,null,"Systems","We experienced  problems entering traffic citations with our new Case Management System.  These problems are being corrected in our next release that will go live on 1/21/2014.  Also, in February we go live with Ecitations and this will help speed up the process.  ",null,null,null,null,null,null,null,null,null,null,null,null,null,null,null,null,null,null,null,null,null,null,null,null,null,null,null,null,20140219]
["Palm Beach",null,null,null,null,null,null,null,null,null,null,null,null,null,null,null,null,null,null,null,null,null,null,null,null,null,null,null,null,null,null,null,null,null,null,null,null,null,null,null,null,null,null,20140213]
["Pasco",null,null,null,null,null,null,null,null,null,null,null,null,null,null,null,null,null,null,null,null,null,null,null,null,null,null,null,null,null,null,null,null,null,null,null,null,null,null,null,null,null,null,20140220]
["Pinellas",null,null,null,null,null,null,null,null,null,null,null,null,null,null,null,null,null,null,null,null,null,null,null,null,null,null,null,null,null,null,null,null,null,null,null,null,null,null,null,null,null,null,20140220]
["Polk",null,null,null,null,null,null,null,null,null,null,null,null,null,null,"Procedural","Standards reviewed with staff when processing paper filings. eFiled cases were the focus when it should've been paper & electronic equally. Cases will be monitored more closely by management.",null,null,null,null,null,null,null,null,null,null,null,null,null,null,null,null,null,null,null,null,null,null,null,null,null,null,20140220]
["Putnam",null,null,null,null,null,null,null,null,null,null,"Staffing - Insufficient Personnel","Incidental - Bereavement & Sick Leave",null,null,"Staffing - Training Required","Reorganizing Office Staff at this Time",null,null,null,null,null,null,null,null,null,null,null,null,null,"Staffing - Insufficient Personnel","Incidental - Bereavement & Sick Leave","Staffing - Insufficient Personnel","Incidental - Bereavement & Sick Leave",null,null,"Staffing - Insufficient Personnel","Incidental - Bereavement & Sick Leave",null,null,null,null,null,20140218]
["Santa Rosa",null,null,null,null,null,null,null,null,null,null,null,null,null,null,null,null,null,null,null,null,null,null,null,null,null,null,null,null,null,null,null,null,null,null,null,null,null,null,null,null,null,null,20140219]
["Sarasota",null,null,null,null,null,null,null,null,null,null,null,null,null,null,null,null,null,null,null,null,null,null,null,null,null,null,null,null,null,null,null,null,null,null,null,null,null,null,null,null,null,null,20140219]
["Seminole",null,null,null,null,null,null,null,null,null,null,null,null,null,null,null,null,null,null,null,null,null,null,null,null,null,null,null,null,null,null,null,null,null,null,null,null,null,null,null,null,null,null,20140207]
["St. Johns",null,null,null,null,null,null,null,null,null,null,null,null,null,null,null,null,null,null,null,null,null,null,null,null,null,null,null,null,null,null,null,null,null,null,null,null,null,null,null,null,null,null,20140214]
["St. Lucie",null,null,null,null,null,null,null,null,null,null,null,null,null,null,null,null,null,null,null,null,null,null,null,null,null,null,null,null,null,null,null,null,null,null,null,null,null,null,null,null,null,null,20140210]
["Sumter","Staffing - Insufficient Personnel","Additional staff being hired to work in felony division to cover increased filings",null,null,null,null,null,null,null,null,null,null,null,null,null,null,null,null,null,null,null,null,null,null,null,null,null,null,null,null,null,null,null,null,null,null,null,null,null,null,null,null,20140210]
["Suwannee",null,null,null,null,null,null,null,null,null,null,null,null,null,null,null,null,null,null,null,null,null,null,null,"Staffing - Training Required","Additional training on meeting Performance Measures","Staffing - Training Required","Additional training on meeting Performance Measures","Staffing - Training Required","Additional training on meeting Performance Measures",null,null,null,null,null,null,null,null,null,null,null,null,null,20140217]
["Taylor",null,null,null,null,null,null,null,null,"E-Filing","Correct issues of filings not moving from eportal to CMS",null,null,null,null,null,null,null,null,null,null,null,null,null,null,null,null,null,null,null,null,null,null,null,null,null,null,null,null,null,null,null,null,20140211]
["Union",null,null,null,null,null,null,null,null,null,null,null,null,null,null,null,null,null,null,null,null,null,null,null,null,null,null,null,null,null,null,null,null,null,null,null,null,null,null,null,null,null,null,20140219]
["Volusia",null,null,null,null,null,null,null,null,null,null,null,null,null,null,null,null,null,null,null,null,null,null,null,null,null,null,null,null,null,null,null,null,null,null,null,null,null,null,null,null,null,null,20140218]
["Wakulla",null,null,null,null,null,null,null,null,null,null,null,null,null,null,null,null,null,null,null,null,null,null,null,null,null,null,null,null,null,null,null,null,null,null,null,null,null,null,null,null,null,null,20140214]
["Walton",null,null,null,null,null,null,null,null,null,null,null,null,null,null,null,null,null,null,null,null,null,null,null,null,null,null,null,null,null,null,null,null,null,null,null,null,null,null,null,null,null,null,20140218]
["Washington",null,null,null,null,null,null,null,null,null,null,null,null,null,null,null,null,null,null,null,null,null,"Other","Coversion, server, and move downtime",null,null,null,null,null,null,null,null,null,null,null,null,null,null,null,null,null,null,null,20140217]

{"sheet":"Action Plan Summary","index":3,"n_rows":92,"n_cols":7,"rows_kept":92,"cut":false,"hidden":false,"merged":[[4,3,4,4],[5,3,5,4],[6,3,6,4],[9,0,12,0],[13,0,16,0],[17,0,20,0],[21,0,24,0],[25,0,28,0],[29,0,32,0],[33,0,36,0],[37,0,40,0],[41,0,44,0],[52,0,55,0],[56,0,59,0],[60,0,63,0],[45,0,48,0],[88,0,91,0],[64,0,67,0],[68,0,71,0],[72,0,75,0],[76,0,79,0],[80,0,83,0],[84,0,87,0]]}
[]
["County Fiscal Year 2016 - 2017"]
["Timeliness Quarterly Action Plan Form for CCOC"]
[]
[null,null,"Report Month of (Quarter Ending): ",{"$f":"'Outputs Monthly'!D6:E6","v":"Feb"},null,"Contact:",{"$f":"IF(ISBLANK('Timeliness Quarterly'!G5:H5),'Outputs Monthly'!G8:H8,'Timeliness Quarterly'!G5:H5)","v":65}]
[null,null,"Version #: ",{"$f":"'Outputs Monthly'!D7:E7","v":1},null,"Telephone:",{"$f":"IF(ISBLANK('Timeliness Quarterly'!G6:H6),'Outputs Monthly'!K8,'Timeliness Quarterly'!G6)","v":306}]
[null,null,"County: ",{"$f":"'Outputs Monthly'!D8:E8","v":"Brevard"},null,"E-mail:",{"$f":"IF(ISBLANK('Timeliness Quarterly'!G7:I7),'Outputs Monthly'!N8,'Timeliness Quarterly'!G7)","v":"kim.reynolds@brevardclerk.us"}]
[]
[" \nTimeliness Measeure # 1","Quarter","CCOC Standard",{"$f":"'Timeliness Quarterly'!E10","v":"# Of Business Days"},"Clerk Performance","Reason Code","Current Actions to Improve"]
["Circuit Criminal",{"$f":"'Timeliness Quarterly'!$F$10","v":"10/1/16 - 12/31/16"},{"$f":"'Timeliness Quarterly'!$D$12","v":0.8},{"$f":"'Timeliness Quarterly'!$E$12","v":2},{"$f":"IF(IFERROR('Timeliness Quarterly'!F$14,\"error\")=\"error\",\"\",IF('Timeliness Quarterly'!F$14<'Timeliness Quarterly'!$D$12,'Timeliness Quarterly'!F$14,\"\"))","v":""},{"$f":"IF(IFERROR('Timeliness Quarterly'!$K$12,\"error\")=\"error\",\"\",IF('Timeliness Quarterly'!$K$12=0,\"\",'Timeliness Quarterly'!$K$12))","v":""},{"$f":"IF(IFERROR('Timeliness Quarterly'!$L$12,\"error\")=\"error\",\"\",IF('Timeliness Quarterly'!$L$12=0,\"\",'Timeliness Quarterly'!$L$12))","v":""}]
[null,{"$f":"'Timeliness Quarterly'!$G$10","v":"1/1/17 - 3/31/17"},{"$f":"'Timeliness Quarterly'!$D$12","v":0.8},{"$f":"'Timeliness Quarterly'!$E$12","v":2},{"$f":"IF(IFERROR('Timeliness Quarterly'!G$14,\"error\")=\"error\",\"\",IF('Timeliness Quarterly'!G$14<'Timeliness Quarterly'!$D$12,'Timeliness Quarterly'!G$14,\"\"))","v":""},{"$f":"IF(IFERROR('Timeliness Quarterly'!$M$12,\"error\")=\"error\",\"\",IF('Timeliness Quarterly'!$M$12=0,\"\",'Timeliness Quarterly'!$M$12))","v":""},{"$f":"IF(IFERROR('Timeliness Quarterly'!$N$12,\"error\")=\"error\",\"\",IF('Timeliness Quarterly'!$N$12=0,\"\",'Timeliness Quarterly'!$N$12))","v":""}]
[null,{"$f":"'Timeliness Quarterly'!$H$10","v":"4/1/17 - 6/30/17"},{"$f":"'Timeliness Quarterly'!$D$12","v":0.8},{"$f":"'Timeliness Quarterly'!$E$12","v":2},{"$f":"IF(IFERROR('Timeliness Quarterly'!H$14,\"error\")=\"error\",\"\",IF('Timeliness Quarterly'!H$14<'Timeliness Quarterly'!$D$12,'Timeliness Quarterly'!H$14,\"\"))","v":""},{"$f":"IF(IFERROR('Timeliness Quarterly'!$O$12,\"error\")=\"error\",\"\",IF('Timeliness Quarterly'!$O$12=0,\"\",'Timeliness Quarterly'!$O$12))","v":""},{"$f":"IF(IFERROR('Timeliness Quarterly'!$P$12,\"error\")=\"error\",\"\",IF('Timeliness Quarterly'!$P$12=0,\"\",'Timeliness Quarterly'!$P$12))","v":""}]
[null,{"$f":"'Timeliness Quarterly'!$I$10","v":"7/1/17 - 9/30/17"},{"$f":"'Timeliness Quarterly'!$D$12","v":0.8},{"$f":"'Timeliness Quarterly'!$E$12","v":2},{"$f":"IF(IFERROR('Timeliness Quarterly'!I$14,\"error\")=\"error\",\"\",IF('Timeliness Quarterly'!I$14<'Timeliness Quarterly'!$D$12,'Timeliness Quarterly'!I$14,\"\"))","v":""},{"$f":"IF(IFERROR('Timeliness Quarterly'!$Q$12,\"error\")=\"error\",\"\",IF('Timeliness Quarterly'!$Q$12=0,\"\",'Timeliness Quarterly'!$Q$12))","v":""},{"$f":"IF(IFERROR('Timeliness Quarterly'!$R$12,\"error\")=\"error\",\"\",IF('Timeliness Quarterly'!$R$12=0,\"\",'Timeliness Quarterly'!$R$12))","v":""}]
["County Criminal",{"$f":"'Timeliness Quarterly'!$F$10","v":"10/1/16 - 12/31/16"},{"$f":"'Timeliness Quarterly'!$D$15","v":0.8},{"$f":"'Timeliness Quarterly'!$E$15","v":3},{"$f":"IF(IFERROR('Timeliness Quarterly'!F$17,\"error\")=\"error\",\"\",IF('Timeliness Quarterly'!F$17<'Timeliness Quarterly'!$D$15,'Timeliness Quarterly'!F$17,\"\"))","v":""},{"$f":"IF(IFERROR('Timeliness Quarterly'!$K$15,\"error\")=\"error\",\"\",IF('Timeliness Quarterly'!$K$15=0,\"\",'Timeliness Quarterly'!$K$15))","v":""},{"$f":"IF(IFERROR('Timeliness Quarterly'!$L$15,\"error\")=\"error\",\"\",IF('Timeliness Quarterly'!$L$15=0,\"\",'Timeliness Quarterly'!$L$15))","v":""}]
[null,{"$f":"'Timeliness Quarterly'!$G$10","v":"1/1/17 - 3/31/17"},{"$f":"'Timeliness Quarterly'!$D$15","v":0.8},{"$f":"'Timeliness Quarterly'!$E$15","v":3},{"$f":"IF(IFERROR('Timeliness Quarterly'!G$17,\"error\")=\"error\",\"\",IF('Timeliness Quarterly'!G$17<'Timeliness Quarterly'!$D$15,'Timeliness Quarterly'!G$17,\"\"))","v":""},{"$f":"IF(IFERROR('Timeliness Quarterly'!$M$15,\"error\")=\"error\",\"\",IF('Timeliness Quarterly'!$M$15=0,\"\",'Timeliness Quarterly'!$M$15))","v":""},{"$f":"IF(IFERROR('Timeliness Quarterly'!$N$15,\"error\")=\"error\",\"\",IF('Timeliness Quarterly'!$N$15=0,\"\",'Timeliness Quarterly'!$N$15))","v":""}]
[null,{"$f":"'Timeliness Quarterly'!$H$10","v":"4/1/17 - 6/30/17"},{"$f":"'Timeliness Quarterly'!$D$15","v":0.8},{"$f":"'Timeliness Quarterly'!$E$15","v":3},{"$f":"IF(IFERROR('Timeliness Quarterly'!H$17,\"error\")=\"error\",\"\",IF('Timeliness Quarterly'!H$17<'Timeliness Quarterly'!$D$15,'Timeliness Quarterly'!H$17,\"\"))","v":""},{"$f":"IF(IFERROR('Timeliness Quarterly'!$O$15,\"error\")=\"error\",\"\",IF('Timeliness Quarterly'!$O$15=0,\"\",'Timeliness Quarterly'!$O$15))","v":""},{"$f":"IF(IFERROR('Timeliness Quarterly'!$P$15,\"error\")=\"error\",\"\",IF('Timeliness Quarterly'!$P$15=0,\"\",'Timeliness Quarterly'!$P$15))","v":""}]
[null,{"$f":"'Timeliness Quarterly'!$I$10","v":"7/1/17 - 9/30/17"},{"$f":"'Timeliness Quarterly'!$D$15","v":0.8},{"$f":"'Timeliness Quarterly'!$E$15","v":3},{"$f":"IF(IFERROR('Timeliness Quarterly'!I$17,\"error\")=\"error\",\"\",IF('Timeliness Quarterly'!I$17<'Timeliness Quarterly'!$D$15,'Timeliness Quarterly'!I$17,\"\"))","v":""},{"$f":"IF(IFERROR('Timeliness Quarterly'!$Q$15,\"error\")=\"error\",\"\",IF('Timeliness Quarterly'!$Q$15=0,\"\",'Timeliness Quarterly'!$Q$15))","v":""},{"$f":"IF(IFERROR('Timeliness Quarterly'!$R$15,\"error\")=\"error\",\"\",IF('Timeliness Quarterly'!$R$15=0,\"\",'Timeliness Quarterly'!$R$15))","v":""}]
["Juvenile Delinquency",{"$f":"'Timeliness Quarterly'!$F$10","v":"10/1/16 - 12/31/16"},{"$f":"'Timeliness Quarterly'!$D$18","v":0.8},{"$f":"'Timeliness Quarterly'!$E$18","v":2},{"$f":"IF(IFERROR('Timeliness Quarterly'!F$20,\"error\")=\"error\",\"\",IF('Timeliness Quarterly'!F$20<'Timeliness Quarterly'!$D$18,'Timeliness Quarterly'!F$20,\"\"))","v":""},{"$f":"IF(IFERROR('Timeliness Quarterly'!$K$18,\"error\")=\"error\",\"\",IF('Timeliness Quarterly'!$K$18=0,\"\",'Timeliness Quarterly'!$K$18))","v":""},{"$f":"IF(IFERROR('Timeliness Quarterly'!$L$18,\"error\")=\"error\",\"\",IF('Timeliness Quarterly'!$L$18=0,\"\",'Timeliness Quarterly'!$L$18))","v":""}]
[null,{"$f":"'Timeliness Quarterly'!$G$10","v":"1/1/17 - 3/31/17"},{"$f":"'Timeliness Quarterly'!$D$18","v":0.8},{"$f":"'Timeliness Quarterly'!$E$18","v":2},{"$f":"IF(IFERROR('Timeliness Quarterly'!G$20,\"error\")=\"error\",\"\",IF('Timeliness Quarterly'!G$20<'Timeliness Quarterly'!$D$18,'Timeliness Quarterly'!G$20,\"\"))","v":""},{"$f":"IF(IFERROR('Timeliness Quarterly'!$M$18,\"error\")=\"error\",\"\",IF('Timeliness Quarterly'!$M$18=0,\"\",'Timeliness Quarterly'!$M$18))","v":""},{"$f":"IF(IFERROR('Timeliness Quarterly'!$N$18,\"error\")=\"error\",\"\",IF('Timeliness Quarterly'!$N$18=0,\"\",'Timeliness Quarterly'!$N$18))","v":""}]
[null,{"$f":"'Timeliness Quarterly'!$H$10","v":"4/1/17 - 6/30/17"},{"$f":"'Timeliness Quarterly'!$D$18","v":0.8},{"$f":"'Timeliness Quarterly'!$E$18","v":2},{"$f":"IF(IFERROR('Timeliness Quarterly'!H$20,\"error\")=\"error\",\"\",IF('Timeliness Quarterly'!H$20<'Timeliness Quarterly'!$D$18,'Timeliness Quarterly'!H$20,\"\"))","v":""},{"$f":"IF(IFERROR('Timeliness Quarterly'!$O$18,\"error\")=\"error\",\"\",IF('Timeliness Quarterly'!$O$18=0,\"\",'Timeliness Quarterly'!$O$18))","v":""},{"$f":"IF(IFERROR('Timeliness Quarterly'!$P$18,\"error\")=\"error\",\"\",IF('Timeliness Quarterly'!$P$18=0,\"\",'Timeliness Quarterly'!$P$18))","v":""}]
[null,{"$f":"'Timeliness Quarterly'!$I$10","v":"7/1/17 - 9/30/17"},{"$f":"'Timeliness Quarterly'!$D$18","v":0.8},{"$f":"'Timeliness Quarterly'!$E$18","v":2},{"$f":"IF(IFERROR('Timeliness Quarterly'!I$20,\"error\")=\"error\",\"\",IF('Timeliness Quarterly'!I$20<'Timeliness Quarterly'!$D$18,'Timeliness Quarterly'!I$20,\"\"))","v":""},{"$f":"IF(IFERROR('Timeliness Quarterly'!$Q$18,\"error\")=\"error\",\"\",IF('Timeliness Quarterly'!$Q$18=0,\"\",'Timeliness Quarterly'!$Q$18))","v":""},{"$f":"IF(IFERROR('Timeliness Quarterly'!$R$18,\"error\")=\"error\",\"\",IF('Timeliness Quarterly'!$R$18=0,\"\",'Timeliness Quarterly'!$R$18))","v":""}]
["Criminal Traffic",{"$f":"'Timeliness Quarterly'!$F$10","v":"10/1/16 - 12/31/16"},{"$f":"'Timeliness Quarterly'!$D$21","v":0.8},{"$f":"'Timeliness Quarterly'!$E$21","v":3},{"$f":"IF(IFERROR('Timeliness Quarterly'!F$23,\"error\")=\"error\",\"\",IF('Timeliness Quarterly'!F$23<'Timeliness Quarterly'!$D$21,'Timeliness Quarterly'!F$23,\"\"))","v":""},{"$f":"IF(IFERROR('Timeliness Quarterly'!$K$21,\"error\")=\"error\",\"\",IF('Timeliness Quarterly'!$K$21=0,\"\",'Timeliness Quarterly'!$K$21))","v":""},{"$f":"IF(IFERROR('Timeliness Quarterly'!$L$21,\"error\")=\"error\",\"\",IF('Timeliness Quarterly'!$L$21=0,\"\",'Timeliness Quarterly'!$L$21))","v":""}]
[null,{"$f":"'Timeliness Quarterly'!$G$10","v":"1/1/17 - 3/31/17"},{"$f":"'Timeliness Quarterly'!$D$21","v":0.8},{"$f":"'Timeliness Quarterly'!$E$21","v":3},{"$f":"IF(IFERROR('Timeliness Quarterly'!G$23,\"error\")=\"error\",\"\",IF('Timeliness Quarterly'!G$23<'Timeliness Quarterly'!$D$21,'Timeliness Quarterly'!G$23,\"\"))","v":""},{"$f":"IF(IFERROR('Timeliness Quarterly'!$M$21,\"error\")=\"error\",\"\",IF('Timeliness Quarterly'!$M$21=0,\"\",'Timeliness Quarterly'!$M$21))","v":""},{"$f":"IF(IFERROR('Timeliness Quarterly'!$N$21,\"error\")=\"error\",\"\",IF('Timeliness Quarterly'!$N$21=0,\"\",'Timeliness Quarterly'!$N$21))","v":""}]
[null,{"$f":"'Timeliness Quarterly'!$H$10","v":"4/1/17 - 6/30/17"},{"$f":"'Timeliness Quarterly'!$D$21","v":0.8},{"$f":"'Timeliness Quarterly'!$E$21","v":3},{"$f":"IF(IFERROR('Timeliness Quarterly'!H$23,\"error\")=\"error\",\"\",IF('Timeliness Quarterly'!H$23<'Timeliness Quarterly'!$D$21,'Timeliness Quarterly'!H$23,\"\"))","v":""},{"$f":"IF(IFERROR('Timeliness Quarterly'!$O$21,\"error\")=\"error\",\"\",IF('Timeliness Quarterly'!$O$21=0,\"\",'Timeliness Quarterly'!$O$21))","v":""},{"$f":"IF(IFERROR('Timeliness Quarterly'!$P$21,\"error\")=\"error\",\"\",IF('Timeliness Quarterly'!$P$21=0,\"\",'Timeliness Quarterly'!$P$21))","v":""}]
[null,{"$f":"'Timeliness Quarterly'!$I$10","v":"7/1/17 - 9/30/17"},{"$f":"'Timeliness Quarterly'!$D$21","v":0.8},{"$f":"'Timeliness Quarterly'!$E$21","v":3},{"$f":"IF(IFERROR('Timeliness Quarterly'!I$23,\"error\")=\"error\",\"\",IF('Timeliness Quarterly'!I$23<'Timeliness Quarterly'!$D$21,'Timeliness Quarterly'!I$23,\"\"))","v":""},{"$f":"IF(IFERROR('Timeliness Quarterly'!$Q$21,\"error\")=\"error\",\"\",IF('Timeliness Quarterly'!$Q$21=0,\"\",'Timeliness Quarterly'!$Q$21))","v":""},{"$f":"IF(IFERROR('Timeliness Quarterly'!$R$21,\"error\")=\"error\",\"\",IF('Timeliness Quarterly'!$R$21=0,\"\",'Timeliness Quarterly'!$R$21))","v":""}]
["Circuit Civil",{"$f":"'Timeliness Quarterly'!$F$10","v":"10/1/16 - 12/31/16"},{"$f":"'Timeliness Quarterly'!$D$25","v":0.8},{"$f":"'Timeliness Quarterly'!$E$25","v":2},{"$f":"IF(IFERROR('Timeliness Quarterly'!F$27,\"error\")=\"error\",\"\",IF('Timeliness Quarterly'!F$27<'Timeliness Quarterly'!$D$25,'Timeliness Quarterly'!F$27,\"\"))","v":""},{"$f":"IF(IFERROR('Timeliness Quarterly'!$K$25,\"error\")=\"error\",\"\",IF('Timeliness Quarterly'!$K$25=0,\"\",'Timeliness Quarterly'!$K$25))","v":""},{"$f":"IF(IFERROR('Timeliness Quarterly'!$L$25,\"error\")=\"error\",\"\",IF('Timeliness Quarterly'!$L$25=0,\"\",'Timeliness Quarterly'!$L$25))","v":""}]
[null,{"$f":"'Timeliness Quarterly'!$G$10","v":"1/1/17 - 3/31/17"},{"$f":"'Timeliness Quarterly'!$D$25","v":0.8},{"$f":"'Timeliness Quarterly'!$E$25","v":2},{"$f":"IF(IFERROR('Timeliness Quarterly'!G$27,\"error\")=\"error\",\"\",IF('Timeliness Quarterly'!G$27<'Timeliness Quarterly'!$D$25,'Timeliness Quarterly'!G$27,\"\"))","v":""},{"$f":"IF(IFERROR('Timeliness Quarterly'!$M$25,\"error\")=\"error\",\"\",IF('Timeliness Quarterly'!$M$25=0,\"\",'Timeliness Quarterly'!$M$25))","v":""},{"$f":"IF(IFERROR('Timeliness Quarterly'!$N$25,\"error\")=\"error\",\"\",IF('Timeliness Quarterly'!$N$25=0,\"\",'Timeliness Quarterly'!$N$25))","v":""}]
[null,{"$f":"'Timeliness Quarterly'!$H$10","v":"4/1/17 - 6/30/17"},{"$f":"'Timeliness Quarterly'!$D$25","v":0.8},{"$f":"'Timeliness Quarterly'!$E$25","v":2},{"$f":"IF(IFERROR('Timeliness Quarterly'!H$27,\"error\")=\"error\",\"\",IF('Timeliness Quarterly'!H$27<'Timeliness Quarterly'!$D$25,'Timeliness Quarterly'!H$27,\"\"))","v":""},{"$f":"IF(IFERROR('Timeliness Quarterly'!$O$25,\"error\")=\"error\",\"\",IF('Timeliness Quarterly'!$O$25=0,\"\",'Timeliness Quarterly'!$O$25))","v":""},{"$f":"IF(IFERROR('Timeliness Quarterly'!$P$25,\"error\")=\"error\",\"\",IF('Timeliness Quarterly'!$P$25=0,\"\",'Timeliness Quarterly'!$P$25))","v":""}]
[null,{"$f":"'Timeliness Quarterly'!$I$10","v":"7/1/17 - 9/30/17"},{"$f":"'Timeliness Quarterly'!$D$25","v":0.8},{"$f":"'Timeliness Quarterly'!$E$25","v":2},{"$f":"IF(IFERROR('Timeliness Quarterly'!I$27,\"error\")=\"error\",\"\",IF('Timeliness Quarterly'!I$27<'Timeliness Quarterly'!$D$25,'Timeliness Quarterly'!I$27,\"\"))","v":""},{"$f":"IF(IFERROR('Timeliness Quarterly'!$Q$25,\"error\")=\"error\",\"\",IF('Timeliness Quarterly'!$Q$25=0,\"\",'Timeliness Quarterly'!$Q$25))","v":""},{"$f":"IF(IFERROR('Timeliness Quarterly'!$R$25,\"error\")=\"error\",\"\",IF('Timeliness Quarterly'!$R$25=0,\"\",'Timeliness Quarterly'!$R$25))","v":""}]
["County Civil",{"$f":"'Timeliness Quarterly'!$F$10","v":"10/1/16 - 12/31/16"},{"$f":"'Timeliness Quarterly'!$D$28","v":0.8},{"$f":"'Timeliness Quarterly'!$E$28","v":2},{"$f":"IF(IFERROR('Timeliness Quarterly'!F$30,\"error\")=\"error\",\"\",IF('Timeliness Quarterly'!F$30<'Timeliness Quarterly'!$D$28,'Timeliness Quarterly'!F$30,\"\"))","v":""},{"$f":"IF(IFERROR('Timeliness Quarterly'!$K$28,\"error\")=\"error\",\"\",IF('Timeliness Quarterly'!$K$28=0,\"\",'Timeliness Quarterly'!$K$28))","v":""},{"$f":"IF(IFERROR('Timeliness Quarterly'!$L$28,\"error\")=\"error\",\"\",IF('Timeliness Quarterly'!$L$28=0,\"\",'Timeliness Quarterly'!$L$28))","v":""}]
[null,{"$f":"'Timeliness Quarterly'!$G$10","v":"1/1/17 - 3/31/17"},{"$f":"'Timeliness Quarterly'!$D$28","v":0.8},{"$f":"'Timeliness Quarterly'!$E$28","v":2},{"$f":"IF(IFERROR('Timeliness Quarterly'!G$30,\"error\")=\"error\",\"\",IF('Timeliness Quarterly'!G$30<'Timeliness Quarterly'!$D$28,'Timeliness Quarterly'!G$30,\"\"))","v":""},{"$f":"IF(IFERROR('Timeliness Quarterly'!$M$28,\"error\")=\"error\",\"\",IF('Timeliness Quarterly'!$M$28=0,\"\",'Timeliness Quarterly'!$M$28))","v":""},{"$f":"IF(IFERROR('Timeliness Quarterly'!$N$28,\"error\")=\"error\",\"\",IF('Timeliness Quarterly'!$N$28=0,\"\",'Timeliness Quarterly'!$N$28))","v":""}]
[null,{"$f":"'Timeliness Quarterly'!$H$10","v":"4/1/17 - 6/30/17"},{"$f":"'Timeliness Quarterly'!$D$28","v":0.8},{"$f":"'Timeliness Quarterly'!$E$28","v":2},{"$f":"IF(IFERROR('Timeliness Quarterly'!H$30,\"error\")=\"error\",\"\",IF('Timeliness Quarterly'!H$30<'Timeliness Quarterly'!$D$28,'Timeliness Quarterly'!H$30,\"\"))","v":""},{"$f":"IF(IFERROR('Timeliness Quarterly'!$O$28,\"error\")=\"error\",\"\",IF('Timeliness Quarterly'!$O$28=0,\"\",'Timeliness Quarterly'!$O$28))","v":""},{"$f":"IF(IFERROR('Timeliness Quarterly'!$P$28,\"error\")=\"error\",\"\",IF('Timeliness Quarterly'!$P$28=0,\"\",'Timeliness Quarterly'!$P$28))","v":""}]
[null,{"$f":"'Timeliness Quarterly'!$I$10","v":"7/1/17 - 9/30/17"},{"$f":"'Timeliness Quarterly'!$D$28","v":0.8},{"$f":"'Timeliness Quarterly'!$E$28","v":2},{"$f":"IF(IFERROR('Timeliness Quarterly'!I$30,\"error\")=\"error\",\"\",IF('Timeliness Quarterly'!I$30<'Timeliness Quarterly'!$D$28,'Timeliness Quarterly'!I$30,\"\"))","v":""},{"$f":"IF(IFERROR('Timeliness Quarterly'!$Q$28,\"error\")=\"error\",\"\",IF('Timeliness Quarterly'!$Q$28=0,\"\",'Timeliness Quarterly'!$Q$28))","v":""},{"$f":"IF(IFERROR('Timeliness Quarterly'!$R$28,\"error\")=\"error\",\"\",IF('Timeliness Quarterly'!$R$28=0,\"\",'Timeliness Quarterly'!$R$28))","v":""}]
["Civil Traffic",{"$f":"'Timeliness Quarterly'!$F$10","v":"10/1/16 - 12/31/16"},{"$f":"'Timeliness Quarterly'!$D$31","v":0.8},{"$f":"'Timeliness Quarterly'!$E$31","v":4},{"$f":"IF(IFERROR('Timeliness Quarterly'!F$33,\"error\")=\"error\",\"\",IF('Timeliness Quarterly'!F$33<'Timeliness Quarterly'!$D$31,'Timeliness Quarterly'!F$33,\"\"))","v":""},{"$f":"IF(IFERROR('Timeliness Quarterly'!$K$31,\"error\")=\"error\",\"\",IF('Timeliness Quarterly'!$K$31=0,\"\",'Timeliness Quarterly'!$K$31))","v":""},{"$f":"IF(IFERROR('Timeliness Quarterly'!$L$31,\"error\")=\"error\",\"\",IF('Timeliness Quarterly'!$L$31=0,\"\",'Timeliness Quarterly'!$L$31))","v":""}]
[null,{"$f":"'Timeliness Quarterly'!$G$10","v":"1/1/17 - 3/31/17"},{"$f":"'Timeliness Quarterly'!$D$31","v":0.8},{"$f":"'Timeliness Quarterly'!$E$31","v":4},{"$f":"IF(IFERROR('Timeliness Quarterly'!G$33,\"error\")=\"error\",\"\",IF('Timeliness Quarterly'!G$33<'Timeliness Quarterly'!$D$31,'Timeliness Quarterly'!G$33,\"\"))","v":""},{"$f":"IF(IFERROR('Timeliness Quarterly'!$M$31,\"error\")=\"error\",\"\",IF('Timeliness Quarterly'!$M$31=0,\"\",'Timeliness Quarterly'!$M$31))","v":""},{"$f":"IF(IFERROR('Timeliness Quarterly'!$N$31,\"error\")=\"error\",\"\",IF('Timeliness Quarterly'!$N$31=0,\"\",'Timeliness Quarterly'!$N$31))","v":""}]
[null,{"$f":"'Timeliness Quarterly'!$H$10","v":"4/1/17 - 6/30/17"},{"$f":"'Timeliness Quarterly'!$D$31","v":0.8},{"$f":"'Timeliness Quarterly'!$E$31","v":4},{"$f":"IF(IFERROR('Timeliness Quarterly'!H$33,\"error\")=\"error\",\"\",IF('Timeliness Quarterly'!H$33<'Timeliness Quarterly'!$D$31,'Timeliness Quarterly'!H$33,\"\"))","v":""},{"$f":"IF(IFERROR('Timeliness Quarterly'!$O$31,\"error\")=\"error\",\"\",IF('Timeliness Quarterly'!$O$31=0,\"\",'Timeliness Quarterly'!$O$31))","v":""},{"$f":"IF(IFERROR('Timeliness Quarterly'!$P$31,\"error\")=\"error\",\"\",IF('Timeliness Quarterly'!$P$31=0,\"\",'Timeliness Quarterly'!$P$31))","v":""}]
[null,{"$f":"'Timeliness Quarterly'!$I$10","v":"7/1/17 - 9/30/17"},{"$f":"'Timeliness Quarterly'!$D$31","v":0.8},{"$f":"'Timeliness Quarterly'!$E$31","v":4},{"$f":"IF(IFERROR('Timeliness Quarterly'!I$33,\"error\")=\"error\",\"\",IF('Timeliness Quarterly'!I$33<'Timeliness Quarterly'!$D$31,'Timeliness Quarterly'!I$33,\"\"))","v":""},{"$f":"IF(IFERROR('Timeliness Quarterly'!$Q$31,\"error\")=\"error\",\"\",IF('Timeliness Quarterly'!$Q$31=0,\"\",'Timeliness Quarterly'!$Q$31))","v":""},{"$f":"IF(IFERROR('Timeliness Quarterly'!$R$31,\"error\")=\"error\",\"\",IF('Timeliness Quarterly'!$R$31=0,\"\",'Timeliness Quarterly'!$R$31))","v":""}]
["Probate",{"$f":"'Timeliness Quarterly'!$F$10","v":"10/1/16 - 12/31/16"},{"$f":"'Timeliness Quarterly'!$D$34","v":0.8},{"$f":"'Timeliness Quarterly'!$E$34","v":2},{"$f":"IF(IFERROR('Timeliness Quarterly'!F$36,\"error\")=\"error\",\"\",IF('Timeliness Quarterly'!F$36<'Timeliness Quarterly'!$D$34,'Timeliness Quarterly'!F$36,\"\"))","v":""},{"$f":"IF(IFERROR('Timeliness Quarterly'!$K$34,\"error\")=\"error\",\"\",IF('Timeliness Quarterly'!$K$34=0,\"\",'Timeliness Quarterly'!$K$34))","v":""},{"$f":"IF(IFERROR('Timeliness Quarterly'!$L$34,\"error\")=\"error\",\"\",IF('Timeliness Quarterly'!$L$34=0,\"\",'Timeliness Quarterly'!$L$34))","v":""}]
[null,{"$f":"'Timeliness Quarterly'!$G$10","v":"1/1/17 - 3/31/17"},{"$f":"'Timeliness Quarterly'!$D$34","v":0.8},{"$f":"'Timeliness Quarterly'!$E$34","v":2},{"$f":"IF(IFERROR('Timeliness Quarterly'!G$36,\"error\")=\"error\",\"\",IF('Timeliness Quarterly'!G$36<'Timeliness Quarterly'!$D$34,'Timeliness Quarterly'!G$36,\"\"))","v":""},{"$f":"IF(IFERROR('Timeliness Quarterly'!$M$34,\"error\")=\"error\",\"\",IF('Timeliness Quarterly'!$M$34=0,\"\",'Timeliness Quarterly'!$M$34))","v":""},{"$f":"IF(IFERROR('Timeliness Quarterly'!$N$34,\"error\")=\"error\",\"\",IF('Timeliness Quarterly'!$N$34=0,\"\",'Timeliness Quarterly'!$N$34))","v":""}]
[null,{"$f":"'Timeliness Quarterly'!$H$10","v":"4/1/17 - 6/30/17"},{"$f":"'Timeliness Quarterly'!$D$34","v":0.8},{"$f":"'Timeliness Quarterly'!$E$34","v":2},{"$f":"IF(IFERROR('Timeliness Quarterly'!H$36,\"error\")=\"error\",\"\",IF('Timeliness Quarterly'!H$36<'Timeliness Quarterly'!$D$34,'Timeliness Quarterly'!H$36,\"\"))","v":""},{"$f":"IF(IFERROR('Timeliness Quarterly'!$O$34,\"error\")=\"error\",\"\",IF('Timeliness Quarterly'!$O$34=0,\"\",'Timeliness Quarterly'!$O$34))","v":""},{"$f":"IF(IFERROR('Timeliness Quarterly'!$P$34,\"error\")=\"error\",\"\",IF('Timeliness Quarterly'!$P$34=0,\"\",'Timeliness Quarterly'!$P$34))","v":""}]
[null,{"$f":"'Timeliness Quarterly'!$I$10","v":"7/1/17 - 9/30/17"},{"$f":"'Timeliness Quarterly'!$D$34","v":0.8},{"$f":"'Timeliness Quarterly'!$E$34","v":2},{"$f":"IF(IFERROR('Timeliness Quarterly'!I$36,\"error\")=\"error\",\"\",IF('Timeliness Quarterly'!I$36<'Timeliness Quarterly'!$D$34,'Timeliness Quarterly'!I$36,\"\"))","v":""},{"$f":"IF(IFERROR('Timeliness Quarterly'!$Q$34,\"error\")=\"error\",\"\",IF('Timeliness Quarterly'!$Q$34=0,\"\",'Timeliness Quarterly'!$Q$34))","v":""},{"$f":"IF(IFERROR('Timeliness Quarterly'!$R$34,\"error\")=\"error\",\"\",IF('Timeliness Quarterly'!$R$34=0,\"\",'Timeliness Quarterly'!$R$34))","v":""}]
["Family",{"$f":"'Timeliness Quarterly'!$F$10","v":"10/1/16 - 12/31/16"},{"$f":"'Timeliness Quarterly'!$D$37","v":0.8},{"$f":"'Timeliness Quarterly'!$E$37","v":3},{"$f":"IF(IFERROR('Timeliness Quarterly'!F$39,\"error\")=\"error\",\"\",IF('Timeliness Quarterly'!F$39<'Timeliness Quarterly'!$D$37,'Timeliness Quarterly'!F$39,\"\"))","v":""},{"$f":"IF(IFERROR('Timeliness Quarterly'!$K$37,\"error\")=\"error\",\"\",IF('Timeliness Quarterly'!$K$37=0,\"\",'Timeliness Quarterly'!$K$37))","v":""},{"$f":"IF(IFERROR('Timeliness Quarterly'!$L$37,\"error\")=\"error\",\"\",IF('Timeliness Quarterly'!$L$37=0,\"\",'Timeliness Quarterly'!$L$37))","v":""}]
[null,{"$f":"'Timeliness Quarterly'!$G$10","v":"1/1/17 - 3/31/17"},{"$f":"'Timeliness Quarterly'!$D$37","v":0.8},{"$f":"'Timeliness Quarterly'!$E$37","v":3},{"$f":"IF(IFERROR('Timeliness Quarterly'!G$39,\"error\")=\"error\",\"\",IF('Timeliness Quarterly'!G$39<'Timeliness Quarterly'!$D$37,'Timeliness Quarterly'!G$39,\"\"))","v":""},{"$f":"IF(IFERROR('Timeliness Quarterly'!$M$37,\"error\")=\"error\",\"\",IF('Timeliness Quarterly'!$M$37=0,\"\",'Timeliness Quarterly'!$M$37))","v":""},{"$f":"IF(IFERROR('Timeliness Quarterly'!$N$37,\"error\")=\"error\",\"\",IF('Timeliness Quarterly'!$N$37=0,\"\",'Timeliness Quarterly'!$N$37))","v":""}]
[null,{"$f":"'Timeliness Quarterly'!$H$10","v":"4/1/17 - 6/30/17"},{"$f":"'Timeliness Quarterly'!$D$37","v":0.8},{"$f":"'Timeliness Quarterly'!$E$37","v":3},{"$f":"IF(IFERROR('Timeliness Quarterly'!H$39,\"error\")=\"error\",\"\",IF('Timeliness Quarterly'!H$39<'Timeliness Quarterly'!$D$37,'Timeliness Quarterly'!H$39,\"\"))","v":""},{"$f":"IF(IFERROR('Timeliness Quarterly'!$O$37,\"error\")=\"error\",\"\",IF('Timeliness Quarterly'!$O$37=0,\"\",'Timeliness Quarterly'!$O$37))","v":""},{"$f":"IF(IFERROR('Timeliness Quarterly'!$P$37,\"error\")=\"error\",\"\",IF('Timeliness Quarterly'!$P$37=0,\"\",'Timeliness Quarterly'!$P$37))","v":""}]
[null,{"$f":"'Timeliness Quarterly'!$I$10","v":"7/1/17 - 9/30/17"},{"$f":"'Timeliness Quarterly'!$D$37","v":0.8},{"$f":"'Timeliness Quarterly'!$E$37","v":3},{"$f":"IF(IFERROR('Timeliness Quarterly'!I$39,\"error\")=\"error\",\"\",IF('Timeliness Quarterly'!I$39<'Timeliness Quarterly'!$D$37,'Timeliness Quarterly'!I$39,\"\"))","v":""},{"$f":"IF(IFERROR('Timeliness Quarterly'!$Q$37,\"error\")=\"error\",\"\",IF('Timeliness Quarterly'!$Q$37=0,\"\",'Timeliness Quarterly'!$Q$37))","v":""},{"$f":"IF(IFERROR('Timeliness Quarterly'!$R$37,\"error\")=\"error\",\"\",IF('Timeliness Quarterly'!$R$37=0,\"\",'Timeliness Quarterly'!$R$37))","v":""}]
["Juvenile Dependency",{"$f":"'Timeliness Quarterly'!$F$10","v":"10/1/16 - 12/31/16"},{"$f":"'Timeliness Quarterly'!$D$40","v":0.8},{"$f":"'Timeliness Quarterly'!$E$40","v":2},{"$f":"IF(IFERROR('Timeliness Quarterly'!F$42,\"error\")=\"error\",\"\",IF('Timeliness Quarterly'!F$42<'Timeliness Quarterly'!$D$40,'Timeliness Quarterly'!F$42,\"\"))","v":""},{"$f":"IF(IFERROR('Timeliness Quarterly'!$K$40,\"error\")=\"error\",\"\",IF('Timeliness Quarterly'!$K$40=0,\"\",'Timeliness Quarterly'!$K$40))","v":""},{"$f":"IF(IFERROR('Timeliness Quarterly'!$L$40,\"error\")=\"error\",\"\",IF('Timeliness Quarterly'!$L$40=0,\"\",'Timeliness Quarterly'!$L$40))","v":""}]
[null,{"$f":"'Timeliness Quarterly'!$G$10","v":"1/1/17 - 3/31/17"},{"$f":"'Timeliness Quarterly'!$D$40","v":0.8},{"$f":"'Timeliness Quarterly'!$E$40","v":2},{"$f":"IF(IFERROR('Timeliness Quarterly'!G$42,\"error\")=\"error\",\"\",IF('Timeliness Quarterly'!G$42<'Timeliness Quarterly'!$D$40,'Timeliness Quarterly'!G$42,\"\"))","v":""},{"$f":"IF(IFERROR('Timeliness Quarterly'!$M$40,\"error\")=\"error\",\"\",IF('Timeliness Quarterly'!$M$40=0,\"\",'Timeliness Quarterly'!$M$40))","v":""},{"$f":"IF(IFERROR('Timeliness Quarterly'!$N$40,\"error\")=\"error\",\"\",IF('Timeliness Quarterly'!$N$40=0,\"\",'Timeliness Quarterly'!$N$40))","v":""}]
[null,{"$f":"'Timeliness Quarterly'!$H$10","v":"4/1/17 - 6/30/17"},{"$f":"'Timeliness Quarterly'!$D$40","v":0.8},{"$f":"'Timeliness Quarterly'!$E$40","v":2},{"$f":"IF(IFERROR('Timeliness Quarterly'!H$42,\"error\")=\"error\",\"\",IF('Timeliness Quarterly'!H$42<'Timeliness Quarterly'!$D$40,'Timeliness Quarterly'!H$42,\"\"))","v":""},{"$f":"IF(IFERROR('Timeliness Quarterly'!$O$40,\"error\")=\"error\",\"\",IF('Timeliness Quarterly'!$O$40=0,\"\",'Timeliness Quarterly'!$O$40))","v":""},{"$f":"IF(IFERROR('Timeliness Quarterly'!$P$40,\"error\")=\"error\",\"\",IF('Timeliness Quarterly'!$P$40=0,\"\",'Timeliness Quarterly'!$P$40))","v":""}]
[null,{"$f":"'Timeliness Quarterly'!$I$10","v":"7/1/17 - 9/30/17"},{"$f":"'Timeliness Quarterly'!$D$40","v":0.8},{"$f":"'Timeliness Quarterly'!$E$40","v":2},{"$f":"IF(IFERROR('Timeliness Quarterly'!I$42,\"error\")=\"error\",\"\",IF('Timeliness Quarterly'!I$42<'Timeliness Quarterly'!$D$40,'Timeliness Quarterly'!I$42,\"\"))","v":""},{"$f":"IF(IFERROR('Timeliness Quarterly'!$Q$40,\"error\")=\"error\",\"\",IF('Timeliness Quarterly'!$Q$40=0,\"\",'Timeliness Quarterly'!$Q$40))","v":""},{"$f":"IF(IFERROR('Timeliness Quarterly'!$R$40,\"error\")=\"error\",\"\",IF('Timeliness Quarterly'!$R$40=0,\"\",'Timeliness Quarterly'!$R$40))","v":""}]
[]
[]
[" \nTimeliness Measeure # 2","Quarter","CCOC Standard",{"$f":"'Timeliness Quarterly'!E46","v":"# of business days"},"Clerk Performance","Reason Code","Current Actions to Improve"]
["Circuit Criminal",{"$f":"'Timeliness Quarterly'!$F$46","v":"10/1/16 - 12/31/16"},{"$f":"'Timeliness Quarterly'!$D$48","v":0.8},{"$f":"'Timeliness Quarterly'!$E$48","v":3},{"$f":"IF(IFERROR('Timeliness Quarterly'!F$50,\"error\")=\"error\",\"\",IF('Timeliness Quarterly'!F$50<'Timeliness Quarterly'!$D$48,'Timeliness Quarterly'!F$50,\"\"))","v":""},{"$f":"IF(IFERROR('Timeliness Quarterly'!$K$48,\"error\")=\"error\",\"\",IF('Timeliness Quarterly'!$K$48=0,\"\",'Timeliness Quarterly'!$K$48))","v":""},{"$f":"IF(IFERROR('Timeliness Quarterly'!$L$48,\"error\")=\"error\",\"\",IF('Timeliness Quarterly'!$L$48=0,\"\",'Timeliness Quarterly'!$L$48))","v":""}]
[null,{"$f":"'Timeliness Quarterly'!$G$46","v":"1/1/17 - 3/31/17"},{"$f":"'Timeliness Quarterly'!$D$48","v":0.8},{"$f":"'Timeliness Quarterly'!$E$48","v":3},{"$f":"IF(IFERROR('Timeliness Quarterly'!G$50,\"error\")=\"error\",\"\",IF('Timeliness Quarterly'!G$50<'Timeliness Quarterly'!$D$48,'Timeliness Quarterly'!G$50,\"\"))","v":""},{"$f":"IF(IFERROR('Timeliness Quarterly'!$M$48,\"error\")=\"error\",\"\",IF('Timeliness Quarterly'!$M$48=0,\"\",'Timeliness Quarterly'!$M$48))","v":""},{"$f":"IF(IFERROR('Timeliness Quarterly'!$N$48,\"error\")=\"error\",\"\",IF('Timeliness Quarterly'!$N$48=0,\"\",'Timeliness Quarterly'!$N$48))","v":""}]
[null,{"$f":"'Timeliness Quarterly'!$H$46","v":"4/1/17 - 6/30/17"},{"$f":"'Timeliness Quarterly'!$D$48","v":0.8},{"$f":"'Timeliness Quarterly'!$E$48","v":3},{"$f":"IF(IFERROR('Timeliness Quarterly'!H$50,\"error\")=\"error\",\"\",IF('Timeliness Quarterly'!H$50<'Timeliness Quarterly'!$D$48,'Timeliness Quarterly'!H$50,\"\"))","v":""},{"$f":"IF(IFERROR('Timeliness Quarterly'!$O$48,\"error\")=\"error\",\"\",IF('Timeliness Quarterly'!$O$48=0,\"\",'Timeliness Quarterly'!$O$48))","v":""},{"$f":"IF(IFERROR('Timeliness Quarterly'!$P$48,\"error\")=\"error\",\"\",IF('Timeliness Quarterly'!$P$48=0,\"\",'Timeliness Quarterly'!$P$48))","v":""}]
[null,{"$f":"'Timeliness Quarterly'!$I$46","v":"7/1/17 - 9/30/17"},{"$f":"'Timeliness Quarterly'!$D$48","v":0.8},{"$f":"'Timeliness Quarterly'!$E$48","v":3},{"$f":"IF(IFERROR('Timeliness Quarterly'!I$50,\"error\")=\"error\",\"\",IF('Timeliness Quarterly'!I$50<'Timeliness Quarterly'!$D$48,'Timeliness Quarterly'!I$50,\"\"))","v":""},{"$f":"IF(IFERROR('Timeliness Quarterly'!$Q$48,\"error\")=\"error\",\"\",IF('Timeliness Quarterly'!$Q$48=0,\"\",'Timeliness Quarterly'!$Q$48))","v":""},{"$f":"IF(IFERROR('Timeliness Quarterly'!$R$48,\"error\")=\"error\",\"\",IF('Timeliness Quarterly'!$R$48=0,\"\",'Timeliness Quarterly'!$R$48))","v":""}]
["County Criminal",{"$f":"'Timeliness Quarterly'!$F$46","v":"10/1/16 - 12/31/16"},{"$f":"'Timeliness Quarterly'!$D$51","v":0.8},{"$f":"'Timeliness Quarterly'!$E$51","v":3},{"$f":"IF(IFERROR('Timeliness Quarterly'!F$53,\"error\")=\"error\",\"\",IF('Timeliness Quarterly'!F$53<'Timeliness Quarterly'!$D$51,'Timeliness Quarterly'!F$53,\"\"))","v":""},{"$f":"IF(IFERROR('Timeliness Quarterly'!$K$51,\"error\")=\"error\",\"\",IF('Timeliness Quarterly'!$K$51=0,\"\",'Timeliness Quarterly'!$K$51))","v":""},{"$f":"IF(IFERROR('Timeliness Quarterly'!$L$51,\"error\")=\"error\",\"\",IF('Timeliness Quarterly'!$L$51=0,\"\",'Timeliness Quarterly'!$L$51))","v":""}]
[null,{"$f":"'Timeliness Quarterly'!$G$46","v":"1/1/17 - 3/31/17"},{"$f":"'Timeliness Quarterly'!$D$51","v":0.8},{"$f":"'Timeliness Quarterly'!$E$51","v":3},{"$f":"IF(IFERROR('Timeliness Quarterly'!G$53,\"error\")=\"error\",\"\",IF('Timeliness Quarterly'!G$53<'Timeliness Quarterly'!$D$51,'Timeliness Quarterly'!G$53,\"\"))","v":""},{"$f":"IF(IFERROR('Timeliness Quarterly'!$M$51,\"error\")=\"error\",\"\",IF('Timeliness Quarterly'!$M$51=0,\"\",'Timeliness Quarterly'!$M$51))","v":""},{"$f":"IF(IFERROR('Timeliness Quarterly'!$N$51,\"error\")=\"error\",\"\",IF('Timeliness Quarterly'!$N$51=0,\"\",'Timeliness Quarterly'!$N$51))","v":""}]
[null,{"$f":"'Timeliness Quarterly'!$H$46","v":"4/1/17 - 6/30/17"},{"$f":"'Timeliness Quarterly'!$D$51","v":0.8},{"$f":"'Timeliness Quarterly'!$E$51","v":3},{"$f":"IF(IFERROR('Timeliness Quarterly'!H$53,\"error\")=\"error\",\"\",IF('Timeliness Quarterly'!H$53<'Timeliness Quarterly'!$D$51,'Timeliness Quarterly'!H$53,\"\"))","v":""},{"$f":"IF(IFERROR('Timeliness Quarterly'!$O$51,\"error\")=\"error\",\"\",IF('Timeliness Quarterly'!$O$51=0,\"\",'Timeliness Quarterly'!$O$51))","v":""},{"$f":"IF(IFERROR('Timeliness Quarterly'!$P$51,\"error\")=\"error\",\"\",IF('Timeliness Quarterly'!$P$51=0,\"\",'Timeliness Quarterly'!$P$51))","v":""}]
[null,{"$f":"'Timeliness Quarterly'!$I$46","v":"7/1/17 - 9/30/17"},{"$f":"'Timeliness Quarterly'!$D$51","v":0.8},{"$f":"'Timeliness Quarterly'!$E$51","v":3},{"$f":"IF(IFERROR('Timeliness Quarterly'!I$53,\"error\")=\"error\",\"\",IF('Timeliness Quarterly'!I$53<'Timeliness Quarterly'!$D$51,'Timeliness Quarterly'!I$53,\"\"))","v":""},{"$f":"IF(IFERROR('Timeliness Quarterly'!$Q$51,\"error\")=\"error\",\"\",IF('Timeliness Quarterly'!$Q$51=0,\"\",'Timeliness Quarterly'!$Q$51))","v":""},{"$f":"IF(IFERROR('Timeliness Quarterly'!$R$51,\"error\")=\"error\",\"\",IF('Timeliness Quarterly'!$R$51=0,\"\",'Timeliness Quarterly'!$R$51))","v":""}]
["Juvenile Delinquency",{"$f":"'Timeliness Quarterly'!$F$46","v":"10/1/16 - 12/31/16"},{"$f":"'Timeliness Quarterly'!$D$54","v":0.8},{"$f":"'Timeliness Quarterly'!$E$54","v":3},{"$f":"IF(IFERROR('Timeliness Quarterly'!F$56,\"error\")=\"error\",\"\",IF('Timeliness Quarterly'!F$56<'Timeliness Quarterly'!$D$54,'Timeliness Quarterly'!F$56,\"\"))","v":""},{"$f":"IF(IFERROR('Timeliness Quarterly'!$K$54,\"error\")=\"error\",\"\",IF('Timeliness Quarterly'!$K$54=0,\"\",'Timeliness Quarterly'!$K$54))","v":""},{"$f":"IF(IFERROR('Timeliness Quarterly'!$L$54,\"error\")=\"error\",\"\",IF('Timeliness Quarterly'!$L$54=0,\"\",'Timeliness Quarterly'!$L$54))","v":""}]
[null,{"$f":"'Timeliness Quarterly'!$G$46","v":"1/1/17 - 3/31/17"},{"$f":"'Timeliness Quarterly'!$D$54","v":0.8},{"$f":"'Timeliness Quarterly'!$E$54","v":3},{"$f":"IF(IFERROR('Timeliness Quarterly'!G$56,\"error\")=\"error\",\"\",IF('Timeliness Quarterly'!G$56<'Timeliness Quarterly'!$D$54,'Timeliness Quarterly'!G$56,\"\"))","v":""},{"$f":"IF(IFERROR('Timeliness Quarterly'!$M$54,\"error\")=\"error\",\"\",IF('Timeliness Quarterly'!$M$54=0,\"\",'Timeliness Quarterly'!$M$54))","v":""},{"$f":"IF(IFERROR('Timeliness Quarterly'!$N$54,\"error\")=\"error\",\"\",IF('Timeliness Quarterly'!$N$54=0,\"\",'Timeliness Quarterly'!$N$54))","v":""}]
[null,{"$f":"'Timeliness Quarterly'!$H$46","v":"4/1/17 - 6/30/17"},{"$f":"'Timeliness Quarterly'!$D$54","v":0.8},{"$f":"'Timeliness Quarterly'!$E$54","v":3},{"$f":"IF(IFERROR('Timeliness Quarterly'!H$56,\"error\")=\"error\",\"\",IF('Timeliness Quarterly'!H$56<'Timeliness Quarterly'!$D$54,'Timeliness Quarterly'!H$56,\"\"))","v":""},{"$f":"IF(IFERROR('Timeliness Quarterly'!$O$54,\"error\")=\"error\",\"\",IF('Timeliness Quarterly'!$O$54=0,\"\",'Timeliness Quarterly'!$O$54))","v":""},{"$f":"IF(IFERROR('Timeliness Quarterly'!$P$54,\"error\")=\"error\",\"\",IF('Timeliness Quarterly'!$P$54=0,\"\",'Timeliness Quarterly'!$P$54))","v":""}]
[null,{"$f":"'Timeliness Quarterly'!$I$46","v":"7/1/17 - 9/30/17"},{"$f":"'Timeliness Quarterly'!$D$54","v":0.8},{"$f":"'Timeliness Quarterly'!$E$54","v":3},{"$f":"IF(IFERROR('Timeliness Quarterly'!I$56,\"error\")=\"error\",\"\",IF('Timeliness Quarterly'!I$56<'Timeliness Quarterly'!$D$54,'Timeliness Quarterly'!I$56,\"\"))","v":""},{"$f":"IF(IFERROR('Timeliness Quarterly'!$Q$54,\"error\")=\"error\",\"\",IF('Timeliness Quarterly'!$Q$54=0,\"\",'Timeliness Quarterly'!$Q$54))","v":""},{"$f":"IF(IFERROR('Timeliness Quarterly'!$R$54,\"error\")=\"error\",\"\",IF('Timeliness Quarterly'!$R$54=0,\"\",'Timeliness Quarterly'!$R$54))","v":""}]
["Criminal Traffic",{"$f":"'Timeliness Quarterly'!$F$46","v":"10/1/16 - 12/31/16"},{"$f":"'Timeliness Quarterly'!$D$57","v":0.8},{"$f":"'Timeliness Quarterly'!$E$57","v":3},{"$f":"IF(IFERROR('Timeliness Quarterly'!F$59,\"error\")=\"error\",\"\",IF('Timeliness Quarterly'!F$59<'Timeliness Quarterly'!$D$57,'Timeliness Quarterly'!F$59,\"\"))","v":""},{"$f":"IF(IFERROR('Timeliness Quarterly'!$K$57,\"error\")=\"error\",\"\",IF('Timeliness Quarterly'!$K$57=0,\"\",'Timeliness Quarterly'!$K$57))","v":""},{"$f":"IF(IFERROR('Timeliness Quarterly'!$L$57,\"error\")=\"error\",\"\",IF('Timeliness Quarterly'!$L$57=0,\"\",'Timeliness Quarterly'!$L$57))","v":""}]
[null,{"$f":"'Timeliness Quarterly'!$G$46","v":"1/1/17 - 3/31/17"},{"$f":"'Timeliness Quarterly'!$D$57","v":0.8},{"$f":"'Timeliness Quarterly'!$E$57","v":3},{"$f":"IF(IFERROR('Timeliness Quarterly'!G$59,\"error\")=\"error\",\"\",IF('Timeliness Quarterly'!G$59<'Timeliness Quarterly'!$D$57,'Timeliness Quarterly'!G$59,\"\"))","v":""},{"$f":"IF(IFERROR('Timeliness Quarterly'!$M$57,\"error\")=\"error\",\"\",IF('Timeliness Quarterly'!$M$57=0,\"\",'Timeliness Quarterly'!$M$57))","v":""},{"$f":"IF(IFERROR('Timeliness Quarterly'!$N$57,\"error\")=\"error\",\"\",IF('Timeliness Quarterly'!$N$57=0,\"\",'Timeliness Quarterly'!$N$57))","v":""}]
[null,{"$f":"'Timeliness Quarterly'!$H$46","v":"4/1/17 - 6/30/17"},{"$f":"'Timeliness Quarterly'!$D$57","v":0.8},{"$f":"'Timeliness Quarterly'!$E$57","v":3},{"$f":"IF(IFERROR('Timeliness Quarterly'!H$59,\"error\")=\"error\",\"\",IF('Timeliness Quarterly'!H$59<'Timeliness Quarterly'!$D$57,'Timeliness Quarterly'!H$59,\"\"))","v":""},{"$f":"IF(IFERROR('Timeliness Quarterly'!$O$57,\"error\")=\"error\",\"\",IF('Timeliness Quarterly'!$O$57=0,\"\",'Timeliness Quarterly'!$O$57))","v":""},{"$f":"IF(IFERROR('Timeliness Quarterly'!$P$57,\"error\")=\"error\",\"\",IF('Timeliness Quarterly'!$P$57=0,\"\",'Timeliness Quarterly'!$P$57))","v":""}]
[null,{"$f":"'Timeliness Quarterly'!$I$46","v":"7/1/17 - 9/30/17"},{"$f":"'Timeliness Quarterly'!$D$57","v":0.8},{"$f":"'Timeliness Quarterly'!$E$57","v":3},{"$f":"IF(IFERROR('Timeliness Quarterly'!I$59,\"error\")=\"error\",\"\",IF('Timeliness Quarterly'!I$59<'Timeliness Quarterly'!$D$57,'Timeliness Quarterly'!I$59,\"\"))","v":""},{"$f":"IF(IFERROR('Timeliness Quarterly'!$Q$57,\"error\")=\"error\",\"\",IF('Timeliness Quarterly'!$Q$57=0,\"\",'Timeliness Quarterly'!$Q$57))","v":""},{"$f":"IF(IFERROR('Timeliness Quarterly'!$R$57,\"error\")=\"error\",\"\",IF('Timeliness Quarterly'!$R$57=0,\"\",'Timeliness Quarterly'!$R$57))","v":""}]
["Circuit Civil",{"$f":"'Timeliness Quarterly'!$F$46","v":"10/1/16 - 12/31/16"},{"$f":"'Timeliness Quarterly'!$D$61","v":0.8},{"$f":"'Timeliness Quarterly'!$E$61","v":3},{"$f":"IF(IFERROR('Timeliness Quarterly'!F$63,\"error\")=\"error\",\"\",IF('Timeliness Quarterly'!F$63<'Timeliness Quarterly'!$D$61,'Timeliness Quarterly'!F$63,\"\"))","v":""},{"$f":"IF(IFERROR('Timeliness Quarterly'!$K$61,\"error\")=\"error\",\"\",IF('Timeliness Quarterly'!$K$61=0,\"\",'Timeliness Quarterly'!$K$61))","v":""},{"$f":"IF(IFERROR('Timeliness Quarterly'!$L$61,\"error\")=\"error\",\"\",IF('Timeliness Quarterly'!$L$61=0,\"\",'Timeliness Quarterly'!$L$61))","v":""}]
[null,{"$f":"'Timeliness Quarterly'!$G$46","v":"1/1/17 - 3/31/17"},{"$f":"'Timeliness Quarterly'!$D$61","v":0.8},{"$f":"'Timeliness Quarterly'!$E$61","v":3},{"$f":"IF(IFERROR('Timeliness Quarterly'!G$63,\"error\")=\"error\",\"\",IF('Timeliness Quarterly'!G$63<'Timeliness Quarterly'!$D$61,'Timeliness Quarterly'!G$63,\"\"))","v":""},{"$f":"IF(IFERROR('Timeliness Quarterly'!$M$61,\"error\")=\"error\",\"\",IF('Timeliness Quarterly'!$M$61=0,\"\",'Timeliness Quarterly'!$M$61))","v":""},{"$f":"IF(IFERROR('Timeliness Quarterly'!$N$61,\"error\")=\"error\",\"\",IF('Timeliness Quarterly'!$N$61=0,\"\",'Timeliness Quarterly'!$N$61))","v":""}]
[null,{"$f":"'Timeliness Quarterly'!$H$46","v":"4/1/17 - 6/30/17"},{"$f":"'Timeliness Quarterly'!$D$61","v":0.8},{"$f":"'Timeliness Quarterly'!$E$61","v":3},{"$f":"IF(IFERROR('Timeliness Quarterly'!H$63,\"error\")=\"error\",\"\",IF('Timeliness Quarterly'!H$63<'Timeliness Quarterly'!$D$61,'Timeliness Quarterly'!H$63,\"\"))","v":""},{"$f":"IF(IFERROR('Timeliness Quarterly'!$O$61,\"error\")=\"error\",\"\",IF('Timeliness Quarterly'!$O$61=0,\"\",'Timeliness Quarterly'!$O$61))","v":""},{"$f":"IF(IFERROR('Timeliness Quarterly'!$P$61,\"error\")=\"error\",\"\",IF('Timeliness Quarterly'!$P$61=0,\"\",'Timeliness Quarterly'!$P$61))","v":""}]
[null,{"$f":"'Timeliness Quarterly'!$I$46","v":"7/1/17 - 9/30/17"},{"$f":"'Timeliness Quarterly'!$D$61","v":0.8},{"$f":"'Timeliness Quarterly'!$E$61","v":3},{"$f":"IF(IFERROR('Timeliness Quarterly'!I$63,\"error\")=\"error\",\"\",IF('Timeliness Quarterly'!I$63<'Timeliness Quarterly'!$D$61,'Timeliness Quarterly'!I$63,\"\"))","v":""},{"$f":"IF(IFERROR('Timeliness Quarterly'!$Q$61,\"error\")=\"error\",\"\",IF('Timeliness Quarterly'!$Q$61=0,\"\",'Timeliness Quarterly'!$Q$61))","v":""},{"$f":"IF(IFERROR('Timeliness Quarterly'!$R$61,\"error\")=\"error\",\"\",IF('Timeliness Quarterly'!$R$61=0,\"\",'Timeliness Quarterly'!$R$61))","v":""}]
["County Civil",{"$f":"'Timeliness Quarterly'!$F$46","v":"10/1/16 - 12/31/16"},{"$f":"'Timeliness Quarterly'!$D$64","v":0.8},{"$f":"'Timeliness Quarterly'!$E$64","v":3},{"$f":"IF(IFERROR('Timeliness Quarterly'!F$66,\"error\")=\"error\",\"\",IF('Timeliness Quarterly'!F$66<'Timeliness Quarterly'!$D$64,'Timeliness Quarterly'!F$66,\"\"))","v":""},{"$f":"IF(IFERROR('Timeliness Quarterly'!$K$64,\"error\")=\"error\",\"\",IF('Timeliness Quarterly'!$K$64=0,\"\",'Timeliness Quarterly'!$K$64))","v":""},{"$f":"IF(IFERROR('Timeliness Quarterly'!$L$64,\"error\")=\"error\",\"\",IF('Timeliness Quarterly'!$L$64=0,\"\",'Timeliness Quarterly'!$L$64))","v":""}]
[null,{"$f":"'Timeliness Quarterly'!$G$46","v":"1/1/17 - 3/31/17"},{"$f":"'Timeliness Quarterly'!$D$64","v":0.8},{"$f":"'Timeliness Quarterly'!$E$64","v":3},{"$f":"IF(IFERROR('Timeliness Quarterly'!G$66,\"error\")=\"error\",\"\",IF('Timeliness Quarterly'!G$66<'Timeliness Quarterly'!$D$64,'Timeliness Quarterly'!G$66,\"\"))","v":""},{"$f":"IF(IFERROR('Timeliness Quarterly'!$M$64,\"error\")=\"error\",\"\",IF('Timeliness Quarterly'!$M$64=0,\"\",'Timeliness Quarterly'!$M$64))","v":""},{"$f":"IF(IFERROR('Timeliness Quarterly'!$N$64,\"error\")=\"error\",\"\",IF('Timeliness Quarterly'!$N$64=0,\"\",'Timeliness Quarterly'!$N$64))","v":""}]
[null,{"$f":"'Timeliness Quarterly'!$H$46","v":"4/1/17 - 6/30/17"},{"$f":"'Timeliness Quarterly'!$D$64","v":0.8},{"$f":"'Timeliness Quarterly'!$E$64","v":3},{"$f":"IF(IFERROR('Timeliness Quarterly'!H$66,\"error\")=\"error\",\"\",IF('Timeliness Quarterly'!H$66<'Timeliness Quarterly'!$D$64,'Timeliness Quarterly'!H$66,\"\"))","v":""},{"$f":"IF(IFERROR('Timeliness Quarterly'!$O$64,\"error\")=\"error\",\"\",IF('Timeliness Quarterly'!$O$64=0,\"\",'Timeliness Quarterly'!$O$64))","v":""},{"$f":"IF(IFERROR('Timeliness Quarterly'!$P$64,\"error\")=\"error\",\"\",IF('Timeliness Quarterly'!$P$64=0,\"\",'Timeliness Quarterly'!$P$64))","v":""}]
[null,{"$f":"'Timeliness Quarterly'!$I$46","v":"7/1/17 - 9/30/17"},{"$f":"'Timeliness Quarterly'!$D$64","v":0.8},{"$f":"'Timeliness Quarterly'!$E$64","v":3},{"$f":"IF(IFERROR('Timeliness Quarterly'!I$66,\"error\")=\"error\",\"\",IF('Timeliness Quarterly'!I$66<'Timeliness Quarterly'!$D$64,'Timeliness Quarterly'!I$66,\"\"))","v":""},{"$f":"IF(IFERROR('Timeliness Quarterly'!$Q$64,\"error\")=\"error\",\"\",IF('Timeliness Quarterly'!$Q$64=0,\"\",'Timeliness Quarterly'!$Q$64))","v":""},{"$f":"IF(IFERROR('Timeliness Quarterly'!$R$64,\"error\")=\"error\",\"\",IF('Timeliness Quarterly'!$R$64=0,\"\",'Timeliness Quarterly'!$R$64))","v":""}]
["Civil Traffic",{"$f":"'Timeliness Quarterly'!$F$46","v":"10/1/16 - 12/31/16"},{"$f":"'Timeliness Quarterly'!$D$67","v":0.8},{"$f":"'Timeliness Quarterly'!$E$67","v":4},{"$f":"IF(IFERROR('Timeliness Quarterly'!F$69,\"error\")=\"error\",\"\",IF('Timeliness Quarterly'!F$69<'Timeliness Quarterly'!$D$67,'Timeliness Quarterly'!F$69,\"\"))","v":""},{"$f":"IF(IFERROR('Timeliness Quarterly'!$K$67,\"error\")=\"error\",\"\",IF('Timeliness Quarterly'!$K$67=0,\"\",'Timeliness Quarterly'!$K$67))","v":""},{"$f":"IF(IFERROR('Timeliness Quarterly'!$L$67,\"error\")=\"error\",\"\",IF('Timeliness Quarterly'!$L$67=0,\"\",'Timeliness Quarterly'!$L$67))","v":""}]
[null,{"$f":"'Timeliness Quarterly'!$G$46","v":"1/1/17 - 3/31/17"},{"$f":"'Timeliness Quarterly'!$D$67","v":0.8},{"$f":"'Timeliness Quarterly'!$E$67","v":4},{"$f":"IF(IFERROR('Timeliness Quarterly'!G$69,\"error\")=\"error\",\"\",IF('Timeliness Quarterly'!G$69<'Timeliness Quarterly'!$D$67,'Timeliness Quarterly'!G$69,\"\"))","v":""},{"$f":"IF(IFERROR('Timeliness Quarterly'!$M$67,\"error\")=\"error\",\"\",IF('Timeliness Quarterly'!$M$67=0,\"\",'Timeliness Quarterly'!$M$67))","v":""},{"$f":"IF(IFERROR('Timeliness Quarterly'!$N$67,\"error\")=\"error\",\"\",IF('Timeliness Quarterly'!$N$67=0,\"\",'Timeliness Quarterly'!$N$67))","v":""}]
[null,{"$f":"'Timeliness Quarterly'!$H$46","v":"4/1/17 - 6/30/17"},{"$f":"'Timeliness Quarterly'!$D$67","v":0.8},{"$f":"'Timeliness Quarterly'!$E$67","v":4},{"$f":"IF(IFERROR('Timeliness Quarterly'!H$69,\"error\")=\"error\",\"\",IF('Timeliness Quarterly'!H$69<'Timeliness Quarterly'!$D$67,'Timeliness Quarterly'!H$69,\"\"))","v":""},{"$f":"IF(IFERROR('Timeliness Quarterly'!$O$67,\"error\")=\"error\",\"\",IF('Timeliness Quarterly'!$O$67=0,\"\",'Timeliness Quarterly'!$O$67))","v":""},{"$f":"IF(IFERROR('Timeliness Quarterly'!$P$67,\"error\")=\"error\",\"\",IF('Timeliness Quarterly'!$P$67=0,\"\",'Timeliness Quarterly'!$P$67))","v":""}]
[null,{"$f":"'Timeliness Quarterly'!$I$46","v":"7/1/17 - 9/30/17"},{"$f":"'Timeliness Quarterly'!$D$67","v":0.8},{"$f":"'Timeliness Quarterly'!$E$67","v":4},{"$f":"IF(IFERROR('Timeliness Quarterly'!I$69,\"error\")=\"error\",\"\",IF('Timeliness Quarterly'!I$69<'Timeliness Quarterly'!$D$67,'Timeliness Quarterly'!I$69,\"\"))","v":""},{"$f":"IF(IFERROR('Timeliness Quarterly'!$Q$67,\"error\")=\"error\",\"\",IF('Timeliness Quarterly'!$Q$67=0,\"\",'Timeliness Quarterly'!$Q$67))","v":""},{"$f":"IF(IFERROR('Timeliness Quarterly'!$R$67,\"error\")=\"error\",\"\",IF('Timeliness Quarterly'!$R$67=0,\"\",'Timeliness Quarterly'!$R$67))","v":""}]
["Probate",{"$f":"'Timeliness Quarterly'!$F$46","v":"10/1/16 - 12/31/16"},{"$f":"'Timeliness Quarterly'!$D$70","v":0.8},{"$f":"'Timeliness Quarterly'!$E$70","v":3},{"$f":"IF(IFERROR('Timeliness Quarterly'!F$72,\"error\")=\"error\",\"\",IF('Timeliness Quarterly'!F$72<'Timeliness Quarterly'!$D$70,'Timeliness Quarterly'!F$72,\"\"))","v":""},{"$f":"IF(IFERROR('Timeliness Quarterly'!$K$70,\"error\")=\"error\",\"\",IF('Timeliness Quarterly'!$K$70=0,\"\",'Timeliness Quarterly'!$K$70))","v":""},{"$f":"IF(IFERROR('Timeliness Quarterly'!$L$70,\"error\")=\"error\",\"\",IF('Timeliness Quarterly'!$L$70=0,\"\",'Timeliness Quarterly'!$L$70))","v":""}]
[null,{"$f":"'Timeliness Quarterly'!$G$46","v":"1/1/17 - 3/31/17"},{"$f":"'Timeliness Quarterly'!$D$70","v":0.8},{"$f":"'Timeliness Quarterly'!$E$70","v":3},{"$f":"IF(IFERROR('Timeliness Quarterly'!G$72,\"error\")=\"error\",\"\",IF('Timeliness Quarterly'!G$72<'Timeliness Quarterly'!$D$70,'Timeliness Quarterly'!G$72,\"\"))","v":""},{"$f":"IF(IFERROR('Timeliness Quarterly'!$M$70,\"error\")=\"error\",\"\",IF('Timeliness Quarterly'!$M$70=0,\"\",'Timeliness Quarterly'!$M$70))","v":""},{"$f":"IF(IFERROR('Timeliness Quarterly'!$N$70,\"error\")=\"error\",\"\",IF('Timeliness Quarterly'!$N$70=0,\"\",'Timeliness Quarterly'!$N$70))","v":""}]
[null,{"$f":"'Timeliness Quarterly'!$H$46","v":"4/1/17 - 6/30/17"},{"$f":"'Timeliness Quarterly'!$D$70","v":0.8},{"$f":"'Timeliness Quarterly'!$E$70","v":3},{"$f":"IF(IFERROR('Timeliness Quarterly'!H$72,\"error\")=\"error\",\"\",IF('Timeliness Quarterly'!H$72<'Timeliness Quarterly'!$D$70,'Timeliness Quarterly'!H$72,\"\"))","v":""},{"$f":"IF(IFERROR('Timeliness Quarterly'!$O$70,\"error\")=\"error\",\"\",IF('Timeliness Quarterly'!$O$70=0,\"\",'Timeliness Quarterly'!$O$70))","v":""},{"$f":"IF(IFERROR('Timeliness Quarterly'!$P$70,\"error\")=\"error\",\"\",IF('Timeliness Quarterly'!$P$70=0,\"\",'Timeliness Quarterly'!$P$70))","v":""}]
[null,{"$f":"'Timeliness Quarterly'!$I$46","v":"7/1/17 - 9/30/17"},{"$f":"'Timeliness Quarterly'!$D$70","v":0.8},{"$f":"'Timeliness Quarterly'!$E$70","v":3},{"$f":"IF(IFERROR('Timeliness Quarterly'!I$72,\"error\")=\"error\",\"\",IF('Timeliness Quarterly'!I$72<'Timeliness Quarterly'!$D$70,'Timeliness Quarterly'!I$72,\"\"))","v":""},{"$f":"IF(IFERROR('Timeliness Quarterly'!$Q$70,\"error\")=\"error\",\"\",IF('Timeliness Quarterly'!$Q$70=0,\"\",'Timeliness Quarterly'!$Q$70))","v":""},{"$f":"IF(IFERROR('Timeliness Quarterly'!$R$70,\"error\")=\"error\",\"\",IF('Timeliness Quarterly'!$R$70=0,\"\",'Timeliness Quarterly'!$R$70))","v":""}]
["Family",{"$f":"'Timeliness Quarterly'!$F$46","v":"10/1/16 - 12/31/16"},{"$f":"'Timeliness Quarterly'!$D$73","v":0.8},{"$f":"'Timeliness Quarterly'!$E$73","v":3},{"$f":"IF(IFERROR('Timeliness Quarterly'!F$75,\"error\")=\"error\",\"\",IF('Timeliness Quarterly'!F$75<'Timeliness Quarterly'!$D$73,'Timeliness Quarterly'!F$75,\"\"))","v":""},{"$f":"IF(IFERROR('Timeliness Quarterly'!$K$73,\"error\")=\"error\",\"\",IF('Timeliness Quarterly'!$K$73=0,\"\",'Timeliness Quarterly'!$K$73))","v":""},{"$f":"IF(IFERROR('Timeliness Quarterly'!$L$73,\"error\")=\"error\",\"\",IF('Timeliness Quarterly'!$L$73=0,\"\",'Timeliness Quarterly'!$L$73))","v":""}]
[null,{"$f":"'Timeliness Quarterly'!$G$46","v":"1/1/17 - 3/31/17"},{"$f":"'Timeliness Quarterly'!$D$73","v":0.8},{"$f":"'Timeliness Quarterly'!$E$73","v":3},{"$f":"IF(IFERROR('Timeliness Quarterly'!G$75,\"error\")=\"error\",\"\",IF('Timeliness Quarterly'!G$75<'Timeliness Quarterly'!$D$73,'Timeliness Quarterly'!G$75,\"\"))","v":""},{"$f":"IF(IFERROR('Timeliness Quarterly'!$M$73,\"error\")=\"error\",\"\",IF('Timeliness Quarterly'!$M$73=0,\"\",'Timeliness Quarterly'!$M$73))","v":""},{"$f":"IF(IFERROR('Timeliness Quarterly'!$N$73,\"error\")=\"error\",\"\",IF('Timeliness Quarterly'!$N$73=0,\"\",'Timeliness Quarterly'!$N$73))","v":""}]
[null,{"$f":"'Timeliness Quarterly'!$H$46","v":"4/1/17 - 6/30/17"},{"$f":"'Timeliness Quarterly'!$D$73","v":0.8},{"$f":"'Timeliness Quarterly'!$E$73","v":3},{"$f":"IF(IFERROR('Timeliness Quarterly'!H$75,\"error\")=\"error\",\"\",IF('Timeliness Quarterly'!H$75<'Timeliness Quarterly'!$D$73,'Timeliness Quarterly'!H$75,\"\"))","v":""},{"$f":"IF(IFERROR('Timeliness Quarterly'!$O$73,\"error\")=\"error\",\"\",IF('Timeliness Quarterly'!$O$73=0,\"\",'Timeliness Quarterly'!$O$73))","v":""},{"$f":"IF(IFERROR('Timeliness Quarterly'!$P$73,\"error\")=\"error\",\"\",IF('Timeliness Quarterly'!$P$73=0,\"\",'Timeliness Quarterly'!$P$73))","v":""}]
[null,{"$f":"'Timeliness Quarterly'!$I$46","v":"7/1/17 - 9/30/17"},{"$f":"'Timeliness Quarterly'!$D$73","v":0.8},{"$f":"'Timeliness Quarterly'!$E$73","v":3},{"$f":"IF(IFERROR('Timeliness Quarterly'!I$75,\"error\")=\"error\",\"\",IF('Timeliness Quarterly'!I$75<'Timeliness Quarterly'!$D$73,'Timeliness Quarterly'!I$75,\"\"))","v":""},{"$f":"IF(IFERROR('Timeliness Quarterly'!$Q$73,\"error\")=\"error\",\"\",IF('Timeliness Quarterly'!$Q$73=0,\"\",'Timeliness Quarterly'!$Q$73))","v":""},{"$f":"IF(IFERROR('Timeliness Quarterly'!$R$73,\"error\")=\"error\",\"\",IF('Timeliness Quarterly'!$R$73=0,\"\",'Timeliness Quarterly'!$R$73))","v":""}]
["Juvenile Dependency",{"$f":"'Timeliness Quarterly'!$F$46","v":"10/1/16 - 12/31/16"},{"$f":"'Timeliness Quarterly'!$D$76","v":0.8},{"$f":"'Timeliness Quarterly'!$E$76","v":3},{"$f":"IF(IFERROR('Timeliness Quarterly'!F$78,\"error\")=\"error\",\"\",IF('Timeliness Quarterly'!F$78<'Timeliness Quarterly'!$D$76,'Timeliness Quarterly'!F$78,\"\"))","v":""},{"$f":"IF(IFERROR('Timeliness Quarterly'!$K$76,\"error\")=\"error\",\"\",IF('Timeliness Quarterly'!$K$76=0,\"\",'Timeliness Quarterly'!$K$76))","v":""},{"$f":"IF(IFERROR('Timeliness Quarterly'!$L$76,\"error\")=\"error\",\"\",IF('Timeliness Quarterly'!$L$76=0,\"\",'Timeliness Quarterly'!$L$76))","v":""}]
[null,{"$f":"'Timeliness Quarterly'!$G$46","v":"1/1/17 - 3/31/17"},{"$f":"'Timeliness Quarterly'!$D$76","v":0.8},{"$f":"'Timeliness Quarterly'!$E$76","v":3},{"$f":"IF(IFERROR('Timeliness Quarterly'!G$78,\"error\")=\"error\",\"\",IF('Timeliness Quarterly'!G$78<'Timeliness Quarterly'!$D$76,'Timeliness Quarterly'!G$78,\"\"))","v":""},{"$f":"IF(IFERROR('Timeliness Quarterly'!$M$76,\"error\")=\"error\",\"\",IF('Timeliness Quarterly'!$M$76=0,\"\",'Timeliness Quarterly'!$M$76))","v":""},{"$f":"IF(IFERROR('Timeliness Quarterly'!$N$76,\"error\")=\"error\",\"\",IF('Timeliness Quarterly'!$N$76=0,\"\",'Timeliness Quarterly'!$N$76))","v":""}]
[null,{"$f":"'Timeliness Quarterly'!$H$46","v":"4/1/17 - 6/30/17"},{"$f":"'Timeliness Quarterly'!$D$76","v":0.8},{"$f":"'Timeliness Quarterly'!$E$76","v":3},{"$f":"IF(IFERROR('Timeliness Quarterly'!H$78,\"error\")=\"error\",\"\",IF('Timeliness Quarterly'!H$78<'Timeliness Quarterly'!$D$76,'Timeliness Quarterly'!H$78,\"\"))","v":""},{"$f":"IF(IFERROR('Timeliness Quarterly'!$O$76,\"error\")=\"error\",\"\",IF('Timeliness Quarterly'!$O$76=0,\"\",'Timeliness Quarterly'!$O$76))","v":""},{"$f":"IF(IFERROR('Timeliness Quarterly'!$P$76,\"error\")=\"error\",\"\",IF('Timeliness Quarterly'!$P$76=0,\"\",'Timeliness Quarterly'!$P$76))","v":""}]
[null,{"$f":"'Timeliness Quarterly'!$I$46","v":"7/1/17 - 9/30/17"},{"$f":"'Timeliness Quarterly'!$D$76","v":0.8},{"$f":"'Timeliness Quarterly'!$E$76","v":3},{"$f":"IF(IFERROR('Timeliness Quarterly'!I$78,\"error\")=\"error\",\"\",IF('Timeliness Quarterly'!I$78<'Timeliness Quarterly'!$D$76,'Timeliness Quarterly'!I$78,\"\"))","v":""},{"$f":"IF(IFERROR('Timeliness Quarterly'!$Q$76,\"error\")=\"error\",\"\",IF('Timeliness Quarterly'!$Q$76=0,\"\",'Timeliness Quarterly'!$Q$76))","v":""},{"$f":"IF(IFERROR('Timeliness Quarterly'!$R$76,\"error\")=\"error\",\"\",IF('Timeliness Quarterly'!$R$76=0,\"\",'Timeliness Quarterly'!$R$76))","v":""}]

{"sheet":"Sheet2","index":4,"n_rows":274,"n_cols":13,"rows_kept":274,"cut":false,"hidden":true,"merged":[]}
[null,null,null,"Cir Crim","Count Crim","Juv Del","Crim Traff","Civ Cir","Civ Count","Probate","Fam","Juv Dep","Civ Traffic"]
["Alachua",4,"New Cases",4400,6000,1100,3700,1800,4700,2500,3000,180,45000]
["Baker",2,"New Cases",571,741,121,420,175,266,193,418,64,4038]
["Bay",3,"New Cases",5759,8814,906,4754,1374,2835,1448,2769,296,24669]
["Bradford",2,"New Cases",850,650,116,667,231,380,105,380,22,7850]
["Brevard",5,"New Cases",8000,10000,1900,7200,5200,7700,5000,7200,350,52000]
["Broward",6,"New Cases",16440,23280,4920,29000,24480,68760,10800,25320,960,321400]
["Calhoun",1,"New Cases",202,171,39,139,73,138,80,280,14,1219]
["Charlotte",3,"New Cases",2200,2500,610,2200,1750,2200,2500,2100,150,15300]
["Citrus",3,"New Cases",1200,1575,200,890,1150,1800,1525,2000,200,5000]
["Clay",3,"New Cases",1696,2428,640,2074,1305,2394,959,2493,283,22109]
["Collier",4,"New Cases",2450,4300,780,4930,2300,4200,3700,3200,215,35400]
["Columbia",2,"New Cases",1100,1250,260,1100,540,1200,500,1300,180,10500]
["Dade",6,"New Cases",30000,36000,4700,66000,32500,75000,13400,31000,3100,742500]
["Desoto",2,"New Cases",570,580,200,460,180,380,120,430,30,3000]
["Dixie",1,"New Cases",220,218,51,168,100,132,86,373,30,2875]
["Duval",5,"New Cases",11394,20857,3161,18635,8812,20658,6244,14184,984,114423]
["Escambia",4,"New Cases",6300,7250,1475,4000,2100,4200,3500,5250,240,36500]
["Flagler",2,"New Cases",1000,1500,240,970,720,1050,750,1200,55,6500]
["Franklin",1,"New Cases",212,862,36,199,93,81,98,229,8,1401]
["Gadsden",2,"New Cases",525,595,119,983,385,440,548,608,15,11298]
["Gilchrist",1,"New Cases",217,262,48,155,116,144,90,310,12,1124]
["Glades",1,"New Cases",150,300,35,180,63,70,43,120,7,4704]
["Gulf",1,"New Cases",289,325,37,159,140,117,122,220,5,662]
["Hamilton",1,"New Cases",278,308,84,406,590,150,76,276,11,3718]
["Hardee",2,"New Cases",339,563,119,619,144,222,111,395,20,4260]
["Hendry",2,"New Cases",780,1300,245,1300,260,400,110,550,35,7000]
["Hernando",3,"New Cases",2500,2500,650,1500,1600,3200,2700,2500,225,24000]
["Highlands",3,"New Cases",1075,1260,450,950,670,1320,1100,1300,60,6000]
["Hillsborough",6,"New Cases",19113,26569,5724,33877,14415,37969,9215,19837,1143,187784]
["Holmes",1,"New Cases",420,450,70,266,105,200,108,300,11,3153]
["Indian River",3,"New Cases",1719,3254,312,1286,955,2108,1342,1762,113,16006]
["Jackson",2,"New Cases",646,547,93,522,385,522,361,720,175,8429]
["Jefferson",1,"New Cases",322,210,25,225,100,120,80,175,2,4977]
["Lafayette",1,"New Cases",58,85,9,85,48,80,37,118,4,600]
["Lake",4,"New Cases",3665,3815,1120,3400,2325,3900,2650,4250,185,36000]
["Lee",5,"New Cases",6050.17,14500,2050,9900,4300,9300,6600,9200,615,88000]
["Leon",4,"New Cases",3901,3672,876,2849,3046.29,6337,2442.86,4100.57,138.86000000000001,33888]
["Levy",2,"New Cases",650,820,150,610,250,450,230,675,30,3500]
["Liberty",1,"New Cases",115,152,31,91,38,57,39,133,3,794]
["Madison",1,"New Cases",410,400,90,460,200,220,140,295,10,10400]
["Manatee",4,"New Cases",4550,5600,1000,4100,2000,4500,3300,4000,700,29500]
["Marion",4,"New Cases",4034,4787,1094,3821,2681,5465,5076,5450,351,27033]
["Martin",3,"New Cases",1623,3129,369,2953,1526.53,1631,1477,1489,126,22838]
["Monroe",3,"New Cases",1362,3064,111,583,699,1592,669,1225,61,20157]
["Nassau",2,"New Cases",946,1397,182,1600,550,800,450,1100,45,10000]
["Okaloosa",3,"New Cases",3000,4800,800,3400,1500,3000,1650,3300,340,22000]
["Okeechobee",2,"New Cases",838,713,166,732,559,398,218,542,81,3971]
["Orange",6,"New Cases",17570,22040,5790,17470,10800,36900,8050,20620,740,264420]
["Osceola",4,"New Cases",4709,4638,1261,4489,3464,5589,1582,5661,106,67924]
["Palm Beach",6,"New Cases",13000,29000,3000,29000,14000,24000,12100,13000,700,200000]
["Pasco",5,"New Cases",9000,14500,1950,5500,4286,7754,3328,6759,300,40000]
["Pinellas",6,"New Cases",14800,25200,4620,16430,8380,21200,10250,12480,780,82200]
["Polk",5,"New Cases",9400,15000,3250,8000,4300,11600,5680,10400,650,65000]
["Putnam",3,"New Cases",1700,1800,340,960,540,1100,480,1350,180,5800]
["Santa Rosa",3,"New Cases",1756,2725,445,2205,1370,1519,798,2402,239,23507]
["Sarasota",4,"New Cases",4277,8424,508,4709,2743,6811,7290,4027,262,57948]
["Seminole",4,"New Cases",4000,5900,1200,5700,3200,8200,3000,5000,290,70000]
["St. Johns",3,"New Cases",1990,4778,530,2045,1650,1913,1600,2046,100,21000]
["St. Lucie",4,"New Cases",3880,5400,1050,3100,2300,5000,2500,3200,400,37500]
["Sumter",2,"New Cases",1000,900,175,980,600,580,1100,800,75,12500]
["Suwannee",2,"New Cases",700,600,200,600,330,560,280,820,25,3600]
["Taylor",2,"New Cases",385,592,79,355,200,200,150,425,50,2270]
["Union",1,"New Cases",170,140,30,100,140,130,130,250,6,1450]
["Volusia",5,"New Cases",9771,17350,1980,11794,4233,8469,5541,7886,536,59096]
["Wakulla",2,"New Cases",286,353,101,284,222,263,134,420,17,4027]
["Walton",2,"New Cases",1176,2413,394,976,729,784,430,925,209,5816]
["Washington",2,"New Cases",420,560,70,235,208,230,130,375,20,3500]
[]
[null,null,null,"Cir Crim","Count Crim","Juv Del","Crim Traff","Civ Cir","Civ Count","Probate","Fam","Juv Dep","Civ Traffic"]
["Alachua",4,"Notices of Appeal",180,8,15,10,50,12,5,1,1,5]
["Baker",2,"Notices of Appeal",16,1,2,0,1,0,1,1,1,0]
["Bay",3,"Notices of Appeal",193,5,5,5,47,2,1,12,8,1]
["Bradford",2,"Notices of Appeal",10,0,0,0,10,0,0,0,0,0]
["Brevard",5,"Notices of Appeal",450,25,3,35,100,15,5,35,25,10]
["Broward",6,"Notices of Appeal",960,120,50,10,720,360,10,120,10,10]
["Calhoun",1,"Notices of Appeal",10,0,0,0,1,0,0,0,0,0]
["Charlotte",3,"Notices of Appeal",65,8,1,1,60,10,1,0,5,0]
["Citrus",3,"Notices of Appeal",120,2,0,0,24,4,2,3,2,0]
["Clay",3,"Notices of Appeal",69,2,2,1,25,4,1,9,4,1]
["Collier",4,"Notices of Appeal",86,3,1,2,86,18,3,25,3,1]
["Columbia",2,"Notices of Appeal",80,6,0,0,16,0,0,0,6,0]
["Dade",6,"Notices of Appeal",1010,25,75,30,900,435,30,120,80,0]
["Desoto",2,"Notices of Appeal",10,2,1,1,10,1,1,1,1,1]
["Dixie",1,"Notices of Appeal",2,0,0,0,1,0,0,1,1,0]
["Duval",5,"Notices of Appeal",518,16,0,5,149,156,3,63,23,7]
["Escambia",4,"Notices of Appeal",640,30,3,8,50,13,3,20,10,0]
["Flagler",2,"Notices of Appeal",50,0,2,1,2,0,0,2,0,0]
["Franklin",1,"Notices of Appeal",1,1,1,1,1,1,1,1,1,1]
["Gadsden",2,"Notices of Appeal",1,0,0,0,0,0,0,0,0,0]
["Gilchrist",1,"Notices of Appeal",2,1,0,0,1,0,0,1,1,0]
["Glades",1,"Notices of Appeal",4,0,0,0,2,0,0,0,0,0]
["Gulf",1,"Notices of Appeal",5,0,0,0,5,0,0,2,0,0]
["Hamilton",1,"Notices of Appeal",17,0,0,0,10,0,0,0,0,0]
["Hardee",2,"Notices of Appeal",0,1,0,0,0,0,0,0,0,0]
["Hendry",2,"Notices of Appeal",15,1,1,1,5,1,1,1,1,1]
["Hernando",3,"Notices of Appeal",80,4,0,0,30,8,1,5,3,1]
["Highlands",3,"Notices of Appeal",70,1,0,3,20,1,0,5,1,3]
["Hillsborough",6,"Notices of Appeal",1226,25,74,33,243,41,7,100,65,9]
["Holmes",1,"Notices of Appeal",12,0,0,0,4,1,1,0,0,0]
["Indian River",3,"Notices of Appeal",55,2,22,2,27,3,2,7,7,0]
["Jackson",2,"Notices of Appeal",24,0,0,0,21,0,0,0,4,0]
["Jefferson",1,"Notices of Appeal",0,0,0,0,4,4,0,0,0,0]
["Lafayette",1,"Notices of Appeal",3,1,1,1,1,1,1,2,1,1]
["Lake",4,"Notices of Appeal",130,2,1,1,40,8,1,8,2,2]
["Lee",5,"Notices of Appeal",265,15,2,2,100,30,10,35,20,5]
["Leon",4,"Notices of Appeal",404,0,2,0,358,8,2,27,9,0]
["Levy",2,"Notices of Appeal",30,3,2,2,20,5,3,10,2,2]
["Liberty",1,"Notices of Appeal",7,0,0,0,4,0,0,0,0,0]
["Madison",1,"Notices of Appeal",20,1,1,1,3,1,1,3,1,1]
["Manatee",4,"Notices of Appeal",250,10,3,5,55,10,1,15,15,0]
["Marion",4,"Notices of Appeal",285,14,1,1,60,1,1,29,14,1]
["Martin",3,"Notices of Appeal",115,5,9,0,49,11,1,13,1,0]
["Monroe",3,"Notices of Appeal",74,5,0,0,54,2,1,3,115,1]
["Nassau",2,"Notices of Appeal",45,2,1,1,10,1,1,3,0,0]
["Okaloosa",3,"Notices of Appeal",120,5,1,1,50,5,1,20,5,1]
["Okeechobee",2,"Notices of Appeal",69,2,0,0,13,0,1,2,2,0]
["Orange",6,"Notices of Appeal",840,25,40,40,350,90,7,80,15,25]
["Osceola",4,"Notices of Appeal",147,11,12,12,49,24,2,24,12,2]
["Palm Beach",6,"Notices of Appeal",515,30,35,28,515,90,40,125,27,21]
["Pasco",5,"Notices of Appeal",150,15,2,2,121,17,12,24,25,5]
["Pinellas",6,"Notices of Appeal",250,38,12,24,234,42,10,46,18,10]
["Polk",5,"Notices of Appeal",552,36,42,6,115,13,2,32,10,3]
["Putnam",3,"Notices of Appeal",140,2,3,3,8,3,2,6,2,1]
["Santa Rosa",3,"Notices of Appeal",101,5,3,3,42,4,1,30,7,1]
["Sarasota",4,"Notices of Appeal",208,5,2,10,90,2,8,14,1,0]
["Seminole",4,"Notices of Appeal",210,35,20,35,75,35,5,15,0,0]
["St. Johns",3,"Notices of Appeal",103,1,0,0,34,0,2,23,3,0]
["St. Lucie",4,"Notices of Appeal",200,4,10,5,60,15,2,8,20,2]
["Sumter",2,"Notices of Appeal",40,1,1,1,40,2,1,5,1,1]
["Suwannee",2,"Notices of Appeal",50,1,0,0,12,0,0,4,0,0]
["Taylor",2,"Notices of Appeal",16,1,0,0,15,0,0,0,0,0]
["Union",1,"Notices of Appeal",4,0,0,0,5,0,0,2,0,0]
["Volusia",5,"Notices of Appeal",439,2,0,5,96,55,10,27,14,5]
["Wakulla",2,"Notices of Appeal",5,0,0,0,5,0,0,0,0,0]
["Walton",2,"Notices of Appeal",72,2,2,3,45,2,2,5,7,0]
["Washington",2,"Notices of Appeal",12,2,2,2,4,2,5,1,1,0]
[]
[null,null,null,"Cir Crim","Count Crim","Juv Del","Crim Traff","Civ Cir","Civ Count","Probate","Fam","Juv Dep","Civ Traffic"]
["Alachua",4,"Reopens",1800,580,700,700,1200,2200,1500,4800,300,0]
["Baker",2,"Reopens",200,234,39,172,6,0,6,214,0,0]
["Bay",3,"Reopens",1989,949,914,508,884,862,28,2960,2721,0]
["Bradford",2,"Reopens",125,110,12,75,45,65,8,250,2,0]
["Brevard",5,"Reopens",8200,2100,2600,2000,6000,3800,2500,8500,800,0]
["Broward",6,"Reopens",14280,2400,2160,1320,44160,25080,480,28320,4920,0]
["Calhoun",1,"Reopens",150,26,10,10,15,20,4,157,64,0]
["Charlotte",3,"Reopens",1015,450,300,500,1000,600,500,600,0,0]
["Citrus",3,"Reopens",2100,800,200,500,950,775,800,1800,2100,0]
["Clay",3,"Reopens",889,193,196,151,890,602,39,2107,1071,0]
["Collier",4,"Reopens",1850,1700,275,1400,1900,1275,1170,2900,605,0]
["Columbia",2,"Reopens",800,300,150,530,100,360,80,1000,100,0]
["Dade",6,"Reopens",27000,12600,4900,44200,30100,25000,45000,25800,10000,0]
["Desoto",2,"Reopens",300,45,80,25,25,1,1,90,100,0]
["Dixie",1,"Reopens",177,33,4,32,0,0,0,18,0,0]
["Duval",5,"Reopens",10528,2796,2521,1962,2632,2076,455,8995,276,0]
["Escambia",4,"Reopens",7100,1450,4800,350,1450,1200,2300,2100,4000,0]
["Flagler",2,"Reopens",400,300,80,100,750,360,180,1000,200,0]
["Franklin",1,"Reopens",189,158,21,51,54,1,6,113,3,0]
["Gadsden",2,"Reopens",519,400,41,0,188,8,125,169,0,0]
["Gilchrist",1,"Reopens",98,37,16,80,9,4,4,229,5,0]
["Glades",1,"Reopens",91,18,0,9,24,6,1,63,1,0]
["Gulf",1,"Reopens",171,35,8,31,42,3,3,140,2,0]
["Hamilton",1,"Reopens",90,2,1,1,42,0,0,167,0,0]
["Hardee",2,"Reopens",255,31,31,29,60,47,141,494,141,0]
["Hendry",2,"Reopens",170,200,35,10,60,10,65,210,65,0]
["Hernando",3,"Reopens",3650,400,400,300,1300,950,800,1200,650,0]
["Highlands",3,"Reopens",900,1000,1275,900,400,500,180,1500,300,0]
["Hillsborough",6,"Reopens",15506,2796,2912,1192,11749,13104,5375,15585,682,0]
["Holmes",1,"Reopens",250,70,25,43,18,10,5,100,20,0]
["Indian River",3,"Reopens",1980,456,955,142,641,799,794,1855,929,0]
["Jackson",2,"Reopens",324,43,13,12,147,148,154,297,70,0]
["Jefferson",1,"Reopens",96,20,4,20,25,80,0,125,6,0]
["Lafayette",1,"Reopens",60,15,4,5,4,18,1,60,1,0]
["Lake",4,"Reopens",1250,700,250,360,2130,1700,750,3350,1370,0]
["Lee",5,"Reopens",19200,3650,600,2500,4200,4000,4100,7300,2100,0]
["Leon",4,"Reopens",745,272,4854,224,1752,2148,1753,4611,2525,0]
["Levy",2,"Reopens",575,200,220,60,200,250,65,575,100,0]
["Liberty",1,"Reopens",136,28,10,18,6,4,22,51,0,0]
["Madison",1,"Reopens",300,45,25,45,7,3,1,190,3,0]
["Manatee",4,"Reopens",4400,750,1185,1100,1600,2000,1400,5200,2000,0]
["Marion",4,"Reopens",4331,1263,542,3072,2249,1950,1275,5442,98,0]
["Martin",3,"Reopens",1753,332,775,226,793,497,544,1216,70,0]
["Monroe",3,"Reopens",635,113,145,48,360,90,85,314,264,0]
["Nassau",2,"Reopens",400,500,60,800,60,300,100,1000,300,0]
["Okaloosa",3,"Reopens",4000,1600,700,600,1200,1200,700,2100,375,0]
["Okeechobee",2,"Reopens",349,166,49,98,234,147,48,464,370,0]
["Orange",6,"Reopens",10700,2400,8000,2500,17000,10500,5300,14500,2300,0]
["Osceola",4,"Reopens",3399,964,247,606,1359,612,624,2583,1200,0]
["Palm Beach",6,"Reopens",6600,3700,7700,6800,23700,8000,7400,19700,5500,0]
["Pasco",5,"Reopens",18000,3600,2000,1700,3132,2724,1164,4171,8500,0]
["Pinellas",6,"Reopens",6200,2600,2700,3400,5300,3400,5100,5800,1150,0]
["Polk",5,"Reopens",8952,3400,2550,1600,4650,4500,930,9150,1750,0]
["Putnam",3,"Reopens",2160,300,30,150,220,240,90,1440,300,0]
["Santa Rosa",3,"Reopens",1375,767,206,381,591,592,479,1097,760,0]
["Sarasota",4,"Reopens",4271,1231,490,1249,3989,2197,2934,3353,7,0]
["Seminole",4,"Reopens",3700,1400,1200,1100,2000,2200,1700,2000,3700,0]
["St. Johns",3,"Reopens",3336,557,213,162,242,20,28,976,46,0]
["St. Lucie",4,"Reopens",2200,2200,1400,1300,2000,1800,900,3000,300,0]
["Sumter",2,"Reopens",400,100,50,240,420,230,275,625,60,0]
["Suwannee",2,"Reopens",800,120,100,80,55,140,25,420,10,0]
["Taylor",2,"Reopens",582,121,15,25,94,60,14,245,1,0]
["Union",1,"Reopens",60,30,4,45,45,21,8,210,2,0]
["Volusia",5,"Reopens",3576,1653,2827,446,3101,3050,2357,8255,1486,0]
["Wakulla",2,"Reopens",219,48,51,72,108,89,9,173,2,0]
["Walton",2,"Reopens",580,650,48,176,475,260,55,475,175,0]
["Washington",2,"Reopens",185,60,0,50,15,0,5,190,0,0]
[]
["Alachua",4,145000]
["Baker",2,32908]
["Bay",3,73965]
["Bradford",2,14500]
["Brevard",5,445889]
["Broward",6,820000]
["Calhoun",1,4000]
["Charlotte",3,55000]
["Citrus",3,128000]
["Clay",3,54000]
["Collier",4,206000]
["Columbia",2,23000]
["Dade",6,1250000]
["Desoto",2,10000]
["Dixie",1,4389]
["Duval",5,290175]
["Escambia",4,134000]
["Flagler",2,18000]
["Franklin",1,4016]
["Gadsden",2,26011]
["Gilchrist",1,3239]
["Glades",1,6409]
["Gulf",1,3834]
["Hamilton",1,7725]
["Hardee",2,10364]
["Hendry",2,15000]
["Hernando",3,70400]
["Highlands",3,22000]
["Hillsborough",6,350692]
["Holmes",1,7450]
["Indian River",3,54180]
["Jackson",2,16078]
["Jefferson",1,7900]
["Lafayette",1,1500]
["Lake",4,365000]
["Lee",5,235000]
["Leon",4,115000]
["Levy",2,12610]
["Liberty",1,2500]
["Madison",1,14900]
["Manatee",4,106000]
["Marion",4,374415]
["Martin",3,60555]
["Monroe",3,43000]
["Nassau",2,21500]
["Okaloosa",3,62535]
["Okeechobee",2,13604]
["Orange",6,755000]
["Osceola",4,170000]
["Palm Beach",6,525000]
["Pasco",5,175000]
["Pinellas",6,405150]
["Polk",5,220000]
["Putnam",3,22000]
["Santa Rosa",3,56642]
["Sarasota",4,137350]
["Seminole",4,430000]
["St. Johns",3,46800]
["St. Lucie",4,104000]
["Sumter",2,65000]
["Suwannee",2,11200]
["Taylor",2,9000]
["Union",1,2900]
["Volusia",5,169818]
["Wakulla",2,8900]
["Walton",2,19951]
["Washington",2,27000]